Workbook

Sheet Menu
C3: Sheet Tab | D3: Description | E3: Author
B4: 1 | C4: Menu
B5: 2 | C5: Intro
B6: 3 | C6: Show Formula
B7: 4 | C7: Sheet Name Function
B8: 5 | C8: Short Cuts
B9: 6 | C9: Vintage Depreciation
B10: 7 | C10: Implied Historic Growth
B11: 8 | C11: Starting Capital Expenditure
B12: 9 | C12: Net Plant Depreciation Rate
B13: 10 | C13: Simple Cap Exp to Depreciation
B14: 11 | C14: Comprehensive Cap Exp to Dep
B15: 12 | C15: Stable Deferred Taxes
B16: 13 | C16: Comprehensive Deferred Tax
B17: 14 | C17: Dates Allocate
B19: File Name: | D19: C:\Users\Monika\Documents\Courses\Chapter 1. Models and Analysis\1. Corporate Model Templates and Exercises\DCF, Multiples and Depreciation\Depreciation\Depreciation Functions.xlsm
B21: Colour Codes
B23: Last Save Date | D23: 2014-12-02T10:30:09
B24: Last Save By | D24: Winston Churchill

Sheet Intro (hidden)
C2: User defined functions can solve many problems in excel in a much better manner than macros
C4: Functions cannot refer to ranges in the excel sheet
C5: Data must be entered as arguments
C6: Can have a turn off switch
C7: Cannot fix cells
B9: Common Problems when Writing Functions
C10: When you read in a variable is not named correctly, you get VALUE
C11: You must be careful about using scalars and array inputs to the function
C12: Can test using EXIT FUNCTION
C15: A user-defined function called by a formula in a worksheet cell cannot change the environment of Microsoft Excel. This means that such a function cannot do any of the following: •Insert, delete, or format cells on the spreadsheet.
C16: •Change another cell's value.
C17: •Move, rename, delete, or add sheets to a workbook.
C18: •Change any of the environment options, such as calculation mode or screen views.
C19: •Add names to a workbook.
C20: •Set properties or execute most methods.
B22: What does work
C23: Read in All of the Values
C24: Change a Range of Cells with and Array Function
B27: Basics
C28: Compute a variable defined as the function name; when you change a function don't forget to change the varible
C29: Use the F5 key after error
B31: Some Hints
C32: Use Msgbox and CHR(13) to debug; if you are like me you make spelling mistakes
B35: Fancy Stuff
C36: You can make an array that goes sideways or up and down
B41: Copying the functions into financial models
C42: Method 1: Open VBA and Copy and Paste
C43: Method 2: Save as XLA and Open as Excel Adder

Sheet Show Formula (hidden)
D3: The Simplest Function
D6: 1
D7: 1
D9: =SUM(D6:D8) -> 2 | F9: =show_form(D9) -> =SUM(D6:D8) | J9: =show_form(F9) -> =show_form(D9)
D11: =D6+D7 -> 2 | F11: =show_formula(D11) -> < ---- Formula for: $D$11 =D6+D7 | J11: =show_formula(F11) -> < ---- Formula for: $F$11 =show_formula(D11)
E16: Function must define the function name in the body

Sheet Sheet Name Function (hidden)
C3: This function finds the name of a sheet
C6: =sheet_name(F6) -> Sheet Name Function | F6: =show_formula(C6) -> < ---- Formula for: $C$6 =sheet_name(F6)
C8: =sheet_name('Short Cuts'!D9) -> Short Cuts | F8: =show_formula(C8) -> < ---- Formula for: $C$8 =sheet_name('Short Cuts'!D9)

Sheet Short Cuts
B4: Input | D4: 0.1111 | E4: SHIFT, CNTL, D
B5: Input 1 | D5: 0.1
B6: Calculation | D6: =SUM(D4:D5) -> 0.2111
B9: Switch | D9: TRUE | E9: TRUE | F9: TRUE | G9: TRUE | H9: FALSE | I9: FALSE | J9: FALSE | K9: FALSE
D11: SHIFT, CNTL, T | H11: SHIFT, CNTL, F
B14: Input | D14: 0.1
B15: Input | D15: 20 | E15: SHIFT, CNTL X
B16: Input | D16: 100
D18: 10
A21: Title 1
A24: Title 2
B27: SHIFT, CNTL, M to make a title

Sheet Vintage Depreciation
B2: requires SHIFT, CNTL, Enter | H2: =f(J34) -> =depreciation(J14:T14,J17:P17)
B4: Eliminate the painful matrix
B6: Rules for Array Output
B7: 1. Define function as variant
B8: 2. use ReDim to define a new array variable
B9: 3. Make the function name equal to the new variable
H13: Model Year | J13: 2014 | K13: =J13+1 -> 2015 | L13: 2016 | M13: 2017 | N13: 2018 | O13: 2019 | P13: 2020 | Q13: 2021 | R13: 2022 | S13: 2023 | T13: 2024
H14: Capital Expenditure | J14: 200 | K14: =J14*1.09 -> 218 | L14: 237.62 | M14: 259.0058 | N14: 282.316322 | O14: 307.724791 | P14: 335.4200222 | Q14: 365.6078242 | R14: 398.5125283 | S14: 434.3786559 | T14: 473.4727349
I16: 0 | J16: 1 | K16: 2 | L16: 3 | M16: 4 | N16: 5 | O16: 6 | P16: 7 | Q16: 8 | R16: Check | S16: Factor
H17: Dep Rate | J17: =VDB(1,0,7,I16,J16,$S$17) -> 0.1428571429 | K17: =VDB(1,0,7,J16,K16,$S$17) -> 0.1428571429 | L17: 0.1428571429 | M17: 0.1428571429 | N17: 0.1428571429 | O17: 0.1428571429 | P17: 0.1428571429 | R17: =SUM(J17:P17) -> 1 | S17: 1
H19: Yr Born | I19: Expenditure
H20: =TRANSPOSE(J13:T13) -> 2014 | I20: =TRANSPOSE(J14:T14) -> 200 | J20: =LOOKUP(J$13-$H20+1,$I$16:$Q$16,$I$17:$Q$17)*$I20 -> 28.57142857 | K20: =LOOKUP(K$13-$H20+1,$I$16:$Q$16,$I$17:$Q$17)*$I20 -> 28.57142857 | L20: 28.57142857 | M20: 28.57142857 | N20: 28.57142857 | O20: 28.57142857 | P20: 28.57142857 | Q20: 0 | R20: 0 | S20: 0 | T20: 0
H21: 2015 | I21: 218 | J21: =LOOKUP(J$13-$H21+1,$I$16:$Q$16,$I$17:$Q$17)*$I21 -> 0 | K21: 31.14285714 | L21: 31.14285714 | M21: 31.14285714 | N21: 31.14285714 | O21: 31.14285714 | P21: 31.14285714 | Q21: 31.14285714 | R21: 0 | S21: 0 | T21: 0
H22: 2016 | I22: 237.62 | K22: 0 | L22: 33.94571429 | M22: 33.94571429 | N22: 33.94571429 | O22: 33.94571429 | P22: 33.94571429 | Q22: 33.94571429 | R22: 33.94571429 | S22: 0 | T22: 0
H23: 2017 | I23: 259.0058 | L23: 0 | M23: 37.00082857 | N23: 37.00082857 | O23: 37.00082857 | P23: 37.00082857 | Q23: 37.00082857 | R23: 37.00082857 | S23: 37.00082857 | T23: 0
H24: 2018 | I24: 282.316322 | M24: 0 | N24: 40.33090314 | O24: 40.33090314 | P24: 40.33090314 | Q24: 40.33090314 | R24: 40.33090314 | S24: 40.33090314 | T24: 40.33090314
H25: 2019 | I25: 307.724791 | N25: 0 | O25: 43.96068443 | P25: 43.96068443 | Q25: 43.96068443 | R25: 43.96068443 | S25: 43.96068443 | T25: 43.96068443
H26: 2020 | I26: 335.4200222 | O26: 0 | P26: 47.91714602 | Q26: 47.91714602 | R26: 47.91714602 | S26: 47.91714602 | T26: 47.91714602
H27: 2021 | I27: 365.6078242 | P27: 0 | Q27: 52.22968917 | R27: 52.22968917 | S27: 52.22968917 | T27: 52.22968917
H28: 2022 | I28: 398.5125283 | Q28: 0 | R28: 56.93036119 | S28: 56.93036119 | T28: 56.93036119
H29: 2023 | I29: 434.3786559 | R29: 0 | S29: 62.0540937 | T29: 62.0540937
H30: 2024 | I30: 473.4727349 | S30: 0 | T30: 67.63896213
H32: Total | J32: =SUMIF(J20:J30,"<>#N/A",J20:J30) -> 28.57142857 | K32: =SUMIF(K20:K30,"<>#N/A",K20:K30) -> 59.71428571 | L32: 93.66 | M32: 130.6608286 | N32: 170.9917317 | O32: 214.9524161 | P32: 262.8695622 | Q32: 286.5278228 | R32: 312.3153268 | S32: 340.4237062 | T32: 371.0618398
D34: =f(J34) -> =depreciation(J14:T14,J17:P17) | J34: =depreciation(J14:T14,J17:P17) -> 0 | K34: 28.5714283 | L34: 59.7142868 | M34: 93.66000366 | N34: 130.6608276 | O34: 170.9917297 | P34: 214.9524078 | Q34: 262.8695679 | R34: 286.5278015 | S34: 312.3153381 | T34: 340.4237366

Sheet Stable Deferred Taxes
B2: Stable Capital Expenditures without Historic Growth
B4: Change in Deferred Tax to Cap Exp | E4: =deferred_tax(E7,E8,E9,E10,E16:AH16) -> 0.01409463343 | G4: =show_formulaR(E4) -> < ---- =deferred_tax(E7,E8,E9,E10,E16:AH16)
B6: Assumptions | H6: Outputs
C7: Growth | E7: 0.05 | H7: Change in Deferred Tax/Cap Exp | L7: =INDEX(32:32,MATCH(E8,18:18)) -> -0.01022918255
C8: Book Life | E8: 10 | H8: Cap Exp/Depreciation | L8: =INDEX(33:33,MATCH(E8,$18:$18)) -> 1.233376904
C9: Tax Rate | E9: 0.3
C10: Timing Code | E10: 3
C12: Tax Life | E12: 10
C13: Decline Factor | E13: 2
C15: Tax Depreciation Year | D15: 0 | E15: 1 | F15: 2 | G15: 3 | H15: 4 | I15: 5 | J15: 6 | K15: 7 | L15: 8 | M15: 9 | N15: 10 | O15: 11 | P15: 12 | Q15: 13 | R15: 14 | S15: 15 | T15: 16 | U15: 17 | V15: 18 | W15: 19 | X15: 20 | Y15: 21 | Z15: 22 | AA15: 23 | AB15: 24 | AC15: 25 | AD15: 26 | AE15: 27 | AF15: 28 | AG15: 29 | AH15: 30
C16: Depreciation Rate | E16: =IF(E15<=$E$12,VDB(1,0,$E$12,D15,E15,$E$13)) -> 0.2 | F16: =IF(F15<=$E$12,VDB(1,0,$E$12,E15,F15,$E$13)) -> 0.16 | G16: 0.128 | H16: 0.1024 | I16: 0.08192 | J16: 0.065536 | K16: 0.065536 | L16: 0.065536 | M16: 0.065536 | N16: 0.065536 | O16: FALSE | P16: FALSE | Q16: FALSE | R16: FALSE | S16: FALSE | T16: FALSE | U16: FALSE | V16: =IF(V15<=$E$12,VDB(1,0,$E$12,U15,V15,$E$13)) -> FALSE | W16: FALSE | X16: FALSE | Y16: FALSE | Z16: FALSE | AA16: FALSE | AB16: FALSE | AC16: FALSE | AD16: FALSE | AE16: FALSE | AF16: FALSE | AG16: FALSE | AH16: FALSE
B18: Period | D18: 1 | E18: =D18+1 -> 2 | F18: =E18+1 -> 3 | G18: 4 | H18: 5 | I18: 6 | J18: 7 | K18: 8 | L18: 9 | M18: 10 | N18: 11 | O18: 12 | P18: 13 | Q18: 14 | R18: 15 | S18: 16 | T18: 17 | U18: 18 | V18: 19 | W18: 20 | X18: 21 | Y18: 22 | Z18: 23 | AA18: 24 | AB18: 25 | AC18: 26 | AD18: 27 | AE18: 28 | AF18: 29 | AG18: 30 | AH18: 31 | AI18: 32 | AJ18: 33 | AK18: 34 | AL18: 35 | AM18: 36 | AN18: 37 | AO18: 38 | AP18: 39 | AQ18: 40 | AR18: 41 | AS18: 42 | AT18: 43 | AU18: 44 | AV18: 45 | AW18: 46 | AX18: 47 | AY18: 48 | AZ18: 49 | BA18: 50 | BB18: 51 | BC18: 52 | BD18: 53 | BE18: 54 | BF18: 55 | BG18: 56 | BH18: 57 | BI18: 58 | BJ18: 59 | BK18: 60 | BL18: 61 | BM18: 62 | BN18: 63 | BO18: 64 | BP18: 65 | BQ18: 66 | BR18: =BQ18+1 -> 67 | BS18: 68 | BT18: 69 | BU18: 70 | BV18: 71 | BW18: 72 | BX18: 73 | BY18: 74 | BZ18: 75 | CA18: 76 | CB18: 77 | CC18: 78 | CD18: 79 | CE18: 80 | CF18: 81 | CG18: 82 | CH18: 83 | CI18: 84 | CJ18: 85 | CK18: 86 | CL18: 87 | CM18: 88 | CN18: 89 | CO18: 90 | CP18: 91 | CQ18: 92 | CR18: 93 | CS18: 94 | CT18: 95 | CU18: 96 | CV18: 97 | CW18: 98 | CX18: 99 | CY18: 100 | CZ18: 101
B19: Capital Expenidture | D19: 100 | E19: =D19*(1+$E$7) -> 105 | F19: =E19*(1+$E$7) -> 110.25 | G19: 115.7625 | H19: 121.550625 | I19: 127.6281563 | J19: 134.0095641 | K19: 140.7100423 | L19: 147.7455444 | M19: 155.1328216 | N19: 162.8894627 | O19: 171.0339358 | P19: 179.5856326 | Q19: 188.5649142 | R19: 197.9931599 | S19: 207.8928179 | T19: 218.2874588 | U19: 229.2018318 | V19: 240.6619234 | W19: 252.6950195 | X19: 265.3297705 | Y19: 278.596259 | Z19: 292.526072 | AA19: 307.1523756 | AB19: 322.5099944 | AC19: 338.6354941 | AD19: 355.5672688 | AE19: 373.3456322 | AF19: 392.0129138 | AG19: 411.6135595 | AH19: 432.1942375 | AI19: 453.8039494 | AJ19: 476.4941469 | AK19: 500.3188542 | AL19: 525.3347969 | AM19: 551.6015368 | AN19: 579.1816136 | AO19: 608.1406943 | AP19: 638.547729 | AQ19: 670.4751154 | AR19: 703.9988712 | AS19: 739.1988148 | AT19: 776.1587555 | AU19: 814.9666933 | AV19: 855.715028 | AW19: 898.5007793 | AX19: 943.4258183 | AY19: 990.5971092 | AZ19: 1040.126965 | BA19: 1092.133313 | BB19: 1146.739979 | BC19: 1204.076978 | BD19: 1264.280826 | BE19: 1327.494868 | BF19: 1393.869611 | BG19: 1463.563092 | BH19: 1536.741246 | BI19: 1613.578309 | BJ19: 1694.257224 | BK19: 1778.970085 | BL19: 1867.918589 | BM19: 1961.314519 | BN19: 2059.380245 | BO19: 2162.349257 | BP19: 2270.46672 | BQ19: 2383.990056 | BR19: =BQ19*(1+$E$7) -> 2503.189559 | BS19: 2628.349037 | BT19: 2759.766488 | BU19: 2897.754813 | BV19: 3042.642554 | BW19: 3194.774681 | BX19: 3354.513415 | BY19: 3522.239086 | BZ19: 3698.35104 | CA19: 3883.268592 | CB19: 4077.432022 | CC19: 4281.303623 | CD19: 4495.368804 | CE19: 4720.137244 | CF19: 4956.144107 | CG19: 5203.951312 | CH19: 5464.148878 | CI19: 5737.356322 | CJ19: 6024.224138 | CK19: 6325.435344 | CL19: 6641.707112 | CM19: 6973.792467 | CN19: 7322.482091 | CO19: 7688.606195 | CP19: 8073.036505 | CQ19: 8476.68833 | CR19: 8900.522747 | CS19: 9345.548884 | CT19: 9812.826328 | CU19: 10303.46764 | CV19: 10818.64103 | CW19: 11359.57308 | CX19: 11927.55173 | CY19: 12523.92932 | CZ19: 13150.12578
B20: Plant Balance
C21: Opening Balance | E21: =D24 -> 100 | F21: =E24 -> 205 | G21: 315.25 | H21: 431.0125 | I21: 552.563125 | J21: 680.1912812 | K21: 814.2008453 | L21: 954.9108876 | M21: 1102.656432 | N21: 1257.789254 | O21: 1320.678716 | P21: 1386.712652 | Q21: 1456.048285 | R21: 1528.850699 | S21: 1605.293234 | T21: 1685.557896 | U21: 1769.83579 | V21: 1858.32758 | W21: 1951.243959 | X21: 2048.806157 | Y21: 2151.246465 | Z21: 2258.808788 | AA21: 2371.749227 | AB21: 2490.336689 | AC21: 2614.853523 | AD21: 2745.596199 | AE21: 2882.876009 | AF21: 3027.01981 | AG21: 3178.3708 | AH21: 3337.28934 | AI21: 3504.153807 | AJ21: 3679.361497 | AK21: 3863.329572 | AL21: 4056.496051 | AM21: 4259.320853 | AN21: 4472.286896 | AO21: 4695.901241 | AP21: 4930.696303 | AQ21: 5177.231118 | AR21: 5436.092674 | AS21: 5707.897308 | AT21: 5993.292173 | AU21: 6292.956782 | AV21: 6607.604621 | AW21: 6937.984852 | AX21: 7284.884094 | AY21: 7649.128299 | AZ21: 8031.584714 | BA21: 8433.16395 | BB21: 8854.822147 | BC21: 9297.563255 | BD21: 9762.441417 | BE21: 10250.56349 | BF21: 10763.09166 | BG21: 11301.24625 | BH21: 11866.30856 | BI21: 12459.62399 | BJ21: 13082.60519 | BK21: 13736.73544 | BL21: 14423.57222 | BM21: 15144.75083 | BN21: 15901.98837 | BO21: 16697.08779 | BP21: 17531.94218 | BQ21: 18408.53929 | BR21: =BQ24 -> 19328.96625 | BS21: 20295.41456 | BT21: 21310.18529 | BU21: 22375.69456 | BV21: 23494.47928 | BW21: 24669.20325 | BX21: 25902.66341 | BY21: 27197.79658 | BZ21: 28557.68641 | CA21: 29985.57073 | CB21: 31484.84927 | CC21: 33059.09173 | CD21: 34712.04632 | CE21: 36447.64863 | CF21: 38270.03106 | CG21: 40183.53262 | CH21: 42192.70925 | CI21: 44302.34471 | CJ21: 46517.46194 | CK21: 48843.33504 | CL21: 51285.50179 | CM21: 53849.77688 | CN21: 56542.26573 | CO21: 59369.37901 | CP21: 62337.84796 | CQ21: 65454.74036 | CR21: 68727.47738 | CS21: 72163.85125 | CT21: 75772.04381 | CU21: 79560.646 | CV21: 83538.6783 | CW21: 87715.61222 | CX21: 92101.39283 | CY21: 96706.46247 | CZ21: 101541.7856
C22: Add: Capital Expenditure | D22: =D19 -> 100 | E22: 105 | F22: 110.25 | G22: 115.7625 | H22: 121.550625 | I22: 127.6281563 | J22: 134.0095641 | K22: 140.7100423 | L22: 147.7455444 | M22: 155.1328216 | N22: 162.8894627 | O22: 171.0339358 | P22: 179.5856326 | Q22: 188.5649142 | R22: 197.9931599 | S22: 207.8928179 | T22: 218.2874588 | U22: 229.2018318 | V22: 240.6619234 | W22: 252.6950195 | X22: 265.3297705 | Y22: 278.596259 | Z22: 292.526072 | AA22: 307.1523756 | AB22: 322.5099944 | AC22: 338.6354941 | AD22: 355.5672688 | AE22: 373.3456322 | AF22: 392.0129138 | AG22: 411.6135595 | AH22: 432.1942375 | AI22: 453.8039494 | AJ22: 476.4941469 | AK22: 500.3188542 | AL22: 525.3347969 | AM22: 551.6015368 | AN22: 579.1816136 | AO22: 608.1406943 | AP22: 638.547729 | AQ22: 670.4751154 | AR22: 703.9988712 | AS22: 739.1988148 | AT22: 776.1587555 | AU22: 814.9666933 | AV22: 855.715028 | AW22: 898.5007793 | AX22: 943.4258183 | AY22: 990.5971092 | AZ22: 1040.126965 | BA22: 1092.133313 | BB22: 1146.739979 | BC22: 1204.076978 | BD22: 1264.280826 | BE22: 1327.494868 | BF22: 1393.869611 | BG22: 1463.563092 | BH22: 1536.741246 | BI22: 1613.578309 | BJ22: 1694.257224 | BK22: 1778.970085 | BL22: 1867.918589 | BM22: 1961.314519 | BN22: 2059.380245 | BO22: 2162.349257 | BP22: =BP19 -> 2270.46672 | BQ22: 2383.990056 | BR22: 2503.189559 | BS22: 2628.349037 | BT22: 2759.766488 | BU22: 2897.754813 | BV22: 3042.642554 | BW22: 3194.774681 | BX22: 3354.513415 | BY22: 3522.239086 | BZ22: 3698.35104 | CA22: 3883.268592 | CB22: 4077.432022 | CC22: 4281.303623 | CD22: 4495.368804 | CE22: 4720.137244 | CF22: 4956.144107 | CG22: 5203.951312 | CH22: 5464.148878 | CI22: 5737.356322 | CJ22: 6024.224138 | CK22: 6325.435344 | CL22: 6641.707112 | CM22: 6973.792467 | CN22: 7322.482091 | CO22: 7688.606195 | CP22: 8073.036505 | CQ22: 8476.68833 | CR22: 8900.522747 | CS22: 9345.548884 | CT22: 9812.826328 | CU22: 10303.46764 | CV22: 10818.64103 | CW22: 11359.57308 | CX22: 11927.55173 | CY22: 12523.92932 | CZ22: 13150.12578
C23: Less: Retirements | E23: =IF(E18>$E$8,OFFSET(E22,0,-$E$8)) -> FALSE | F23: =IF(F18>$E$8,OFFSET(F22,0,-$E$8)) -> FALSE | G23: FALSE | H23: FALSE | I23: FALSE | J23: FALSE | K23: FALSE | L23: FALSE | M23: FALSE | N23: 100 | O23: 105 | P23: 110.25 | Q23: 115.7625 | R23: 121.550625 | S23: 127.6281563 | T23: 134.0095641 | U23: 140.7100423 | V23: 147.7455444 | W23: 155.1328216 | X23: 162.8894627 | Y23: 171.0339358 | Z23: 179.5856326 | AA23: 188.5649142 | AB23: 197.9931599 | AC23: 207.8928179 | AD23: 218.2874588 | AE23: 229.2018318 | AF23: 240.6619234 | AG23: 252.6950195 | AH23: 265.3297705 | AI23: 278.596259 | AJ23: 292.526072 | AK23: 307.1523756 | AL23: 322.5099944 | AM23: 338.6354941 | AN23: 355.5672688 | AO23: 373.3456322 | AP23: 392.0129138 | AQ23: 411.6135595 | AR23: 432.1942375 | AS23: 453.8039494 | AT23: 476.4941469 | AU23: 500.3188542 | AV23: 525.3347969 | AW23: 551.6015368 | AX23: 579.1816136 | AY23: 608.1406943 | AZ23: 638.547729 | BA23: 670.4751154 | BB23: 703.9988712 | BC23: 739.1988148 | BD23: 776.1587555 | BE23: 814.9666933 | BF23: 855.715028 | BG23: 898.5007793 | BH23: 943.4258183 | BI23: 990.5971092 | BJ23: 1040.126965 | BK23: 1092.133313 | BL23: 1146.739979 | BM23: 1204.076978 | BN23: 1264.280826 | BO23: 1327.494868 | BP23: 1393.869611 | BQ23: 1463.563092 | BR23: =IF(BR18>$E$8,OFFSET(BR22,0,-$E$8)) -> 1536.741246 | BS23: 1613.578309 | BT23: 1694.257224 | BU23: 1778.970085 | BV23: 1867.918589 | BW23: 1961.314519 | BX23: 2059.380245 | BY23: 2162.349257 | BZ23: 2270.46672 | CA23: 2383.990056 | CB23: 2503.189559 | CC23: 2628.349037 | CD23: 2759.766488 | CE23: 2897.754813 | CF23: 3042.642554 | CG23: 3194.774681 | CH23: 3354.513415 | CI23: 3522.239086 | CJ23: 3698.35104 | CK23: 3883.268592 | CL23: 4077.432022 | CM23: 4281.303623 | CN23: 4495.368804 | CO23: 4720.137244 | CP23: 4956.144107 | CQ23: 5203.951312 | CR23: 5464.148878 | CS23: 5737.356322 | CT23: 6024.224138 | CU23: 6325.435344 | CV23: 6641.707112 | CW23: 6973.792467 | CX23: 7322.482091 | CY23: 7688.606195 | CZ23: 8073.036505
C24: Closing Balance | D24: =D21+D22-D23 -> 100 | E24: =E21+E22-E23 -> 205 | F24: 315.25 | G24: 431.0125 | H24: 552.563125 | I24: 680.1912812 | J24: 814.2008453 | K24: 954.9108876 | L24: 1102.656432 | M24: 1257.789254 | N24: 1320.678716 | O24: 1386.712652 | P24: 1456.048285 | Q24: 1528.850699 | R24: 1605.293234 | S24: 1685.557896 | T24: 1769.83579 | U24: 1858.32758 | V24: 1951.243959 | W24: 2048.806157 | X24: 2151.246465 | Y24: 2258.808788 | Z24: 2371.749227 | AA24: 2490.336689 | AB24: 2614.853523 | AC24: 2745.596199 | AD24: 2882.876009 | AE24: 3027.01981 | AF24: 3178.3708 | AG24: 3337.28934 | AH24: 3504.153807 | AI24: 3679.361497 | AJ24: 3863.329572 | AK24: 4056.496051 | AL24: 4259.320853 | AM24: 4472.286896 | AN24: 4695.901241 | AO24: 4930.696303 | AP24: 5177.231118 | AQ24: 5436.092674 | AR24: 5707.897308 | AS24: 5993.292173 | AT24: 6292.956782 | AU24: 6607.604621 | AV24: 6937.984852 | AW24: 7284.884094 | AX24: 7649.128299 | AY24: 8031.584714 | AZ24: 8433.16395 | BA24: 8854.822147 | BB24: 9297.563255 | BC24: 9762.441417 | BD24: 10250.56349 | BE24: 10763.09166 | BF24: 11301.24625 | BG24: 11866.30856 | BH24: 12459.62399 | BI24: 13082.60519 | BJ24: 13736.73544 | BK24: 14423.57222 | BL24: 15144.75083 | BM24: 15901.98837 | BN24: 16697.08779 | BO24: 17531.94218 | BP24: 18408.53929 | BQ24: =BQ21+BQ22-BQ23 -> 19328.96625 | BR24: 20295.41456 | BS24: 21310.18529 | BT24: 22375.69456 | BU24: 23494.47928 | BV24: 24669.20325 | BW24: 25902.66341 | BX24: 27197.79658 | BY24: 28557.68641 | BZ24: 29985.57073 | CA24: 31484.84927 | CB24: 33059.09173 | CC24: 34712.04632 | CD24: 36447.64863 | CE24: 38270.03106 | CF24: 40183.53262 | CG24: 42192.70925 | CH24: 44302.34471 | CI24: 46517.46194 | CJ24: 48843.33504 | CK24: 51285.50179 | CL24: 53849.77688 | CM24: 56542.26573 | CN24: 59369.37901 | CO24: 62337.84796 | CP24: 65454.74036 | CQ24: 68727.47738 | CR24: 72163.85125 | CS24: 75772.04381 | CT24: 79560.646 | CU24: 83538.6783 | CV24: 87715.61222 | CW24: 92101.39283 | CX24: 96706.46247 | CY24: 101541.7856 | CZ24: 106618.8749
B26: Book Tax Depreciation | D26: =CHOOSE($E$10,D21*(1/$E$8),AVERAGE(D24,D21)/$E$8,D24/$E$8) -> 10 | E26: 20.5 | F26: 31.525 | G26: 43.10125 | H26: 55.2563125 | I26: 68.01912812 | J26: 81.42008453 | K26: 95.49108876 | L26: 110.2656432 | M26: 125.7789254 | N26: 132.0678716 | O26: 138.6712652 | P26: 145.6048285 | Q26: 152.8850699 | R26: 160.5293234 | S26: 168.5557896 | T26: 176.983579 | U26: 185.832758 | V26: 195.1243959 | W26: 204.8806157 | X26: 215.1246465 | Y26: 225.8808788 | Z26: 237.1749227 | AA26: 249.0336689 | AB26: 261.4853523 | AC26: 274.5596199 | AD26: 288.2876009 | AE26: 302.701981 | AF26: 317.83708 | AG26: 333.728934 | AH26: 350.4153807 | AI26: 367.9361497 | AJ26: =CHOOSE($E$10,AJ21*(1/$E$8),AVERAGE(AJ24,AJ21)/$E$8,AJ24/$E$8) -> 386.3329572 | AK26: 405.6496051 | AL26: 425.9320853 | AM26: 447.2286896 | AN26: 469.5901241 | AO26: 493.0696303 | AP26: 517.7231118 | AQ26: 543.6092674 | AR26: 570.7897308 | AS26: 599.3292173 | AT26: 629.2956782 | AU26: 660.7604621 | AV26: 693.7984852 | AW26: 728.4884094 | AX26: 764.9128299 | AY26: 803.1584714 | AZ26: 843.316395 | BA26: 885.4822147 | BB26: 929.7563255 | BC26: 976.2441417 | BD26: 1025.056349 | BE26: 1076.309166 | BF26: 1130.124625 | BG26: 1186.630856 | BH26: 1245.962399 | BI26: 1308.260519 | BJ26: 1373.673544 | BK26: 1442.357222 | BL26: 1514.475083 | BM26: 1590.198837 | BN26: 1669.708779 | BO26: 1753.194218 | BP26: =CHOOSE($E$10,BP21*(1/$E$8),AVERAGE(BP24,BP21)/$E$8,BP24/$E$8) -> 1840.853929 | BQ26: 1932.896625 | BR26: 2029.541456 | BS26: 2131.018529 | BT26: 2237.569456 | BU26: 2349.447928 | BV26: 2466.920325 | BW26: 2590.266341 | BX26: 2719.779658 | BY26: 2855.768641 | BZ26: 2998.557073 | CA26: 3148.484927 | CB26: 3305.909173 | CC26: 3471.204632 | CD26: 3644.764863 | CE26: 3827.003106 | CF26: 4018.353262 | CG26: 4219.270925 | CH26: 4430.234471 | CI26: 4651.746194 | CJ26: 4884.333504 | CK26: 5128.550179 | CL26: 5384.977688 | CM26: 5654.226573 | CN26: 5936.937901 | CO26: 6233.784796 | CP26: 6545.474036 | CQ26: 6872.747738 | CR26: 7216.385125 | CS26: 7577.204381 | CT26: 7956.0646 | CU26: 8353.86783 | CV26: 8771.561222 | CW26: 9210.139283 | CX26: 9670.646247 | CY26: 10154.17856 | CZ26: 10661.88749
B27: Tax Depreciation using Function | D27: =depreciation(D22:CZ22,$E$16:$AH$16) -> 0 | E27: 20 | F27: 37 | G27: 51.65000153 | H27: 64.47249603 | I27: 75.88812256 | J27: 86.23612976 | K27: 97.10153198 | L27: 108.5102158 | M27: 120.4893188 | N27: 133.0673981 | O27: 139.7207642 | P27: 146.7068024 | Q27: 154.0421448 | R27: 161.7442474 | S27: 169.8314667 | T27: 178.3230438 | U27: 187.2391815 | V27: 196.6011353 | W27: 206.4311981 | X27: 216.7527618 | Y27: 227.5903931 | Z27: 238.9699097 | AA27: 250.9184265 | AB27: 263.464325 | AC27: 276.6375427 | AD27: 290.4694214 | AE27: 304.9929199 | AF27: 320.2425232 | AG27: 336.2546692 | AH27: 353.0674133 | AI27: 370.7207642 | AJ27: 389.2568359 | AK27: 408.7196655 | AL27: 429.1556396 | AM27: 450.6134338 | AN27: 473.1440735 | AO27: 496.8013 | AP27: 521.6413574 | AQ27: 547.7234497 | AR27: 575.1096191 | AS27: 603.8651123 | AT27: 634.0583496 | AU27: 665.7612915 | AV27: 699.0493774 | AW27: 734.0018311 | AX27: 770.7018433 | AY27: 809.2369385 | AZ27: 849.6987915 | BA27: 892.1837158 | BB27: 936.7929077 | BC27: 983.6325684 | BD27: 1032.814209 | BE27: 1084.454956 | BF27: 1138.677612 | BG27: 1195.61145 | BH27: 1255.392212 | BI27: 1318.161743 | BJ27: 1384.069824 | BK27: 1453.273315 | BL27: 1525.937012 | BM27: 1602.233887 | BN27: 1682.345581 | BO27: 1766.462891 | BP27: 1854.785889 | BQ27: 1947.525269 | BR27: 2044.901489 | BS27: 2147.146484 | BT27: 2254.503906 | BU27: 2367.229004 | BV27: 2485.590576 | BW27: 2609.870117 | BX27: 2740.363281 | BY27: 2877.381592 | BZ27: 3021.250732 | CA27: 3172.313232 | CB27: 3330.929199 | CC27: 3497.475586 | CD27: 3672.349365 | CE27: 3855.966553 | CF27: 4048.764893 | CG27: 4251.203125 | CH27: 4463.763672 | CI27: 4686.95166 | CJ27: 4921.299316 | CK27: 5167.364258 | CL27: 5425.732422 | CM27: 5697.019043 | CN27: 5981.870117 | CO27: 6280.963867 | CP27: 6595.011719 | CQ27: 6924.762207 | CR27: 7271.000488 | CS27: 7634.550293 | CT27: 8016.277832 | CU27: 8417.091797 | CV27: 8837.946289 | CW27: 9279.84375 | CX27: 9743.835938 | CY27: 10231.02832 | CZ27: 10742.58008
B29: Difference | D29: =D27-D26 -> -10 | E29: =E27-E26 -> -0.5 | F29: 5.475 | G29: 8.548751526 | H29: 9.216183533 | I29: 7.868994434 | J29: 4.816045229 | K29: 1.610443225 | L29: -1.755427436 | M29: -5.289606508 | N29: 0.999526448 | O29: 1.049498956 | P29: 1.101973904 | Q29: 1.157074888 | R29: 1.214924054 | S29: 1.275677123 | T29: 1.339464794 | U29: 1.406423538 | V29: 1.476739374 | W29: 1.550582447 | X29: 1.628115384 | Y29: 1.709514286 | Z29: 1.794986949 | AA29: 1.884757659 | AB29: 1.978972654 | AC29: 2.077922812 | AD29: 2.181820479 | AE29: 2.290938968 | AF29: 2.405443192 | AG29: 2.525735188 | AH29: 2.652032629 | AI29: 2.784614424 | AJ29: 2.923878714 | AK29: 3.070060443 | AL29: 3.22355431 | AM29: 3.384744232 | AN29: 3.553949401 | AO29: 3.731669759 | AP29: 3.918245617 | AQ29: 4.114182312 | AR29: 4.319888376 | AS29: 4.535895002 | AT29: 4.762671441 | AU29: 5.000829428 | AV29: 5.250892261 | AW29: 5.513421616 | AX29: 5.789013351 | AY29: 6.07846707 | AZ29: 6.382396527 | BA29: 6.701501095 | BB29: 7.036582253 | BC29: 7.388426624 | BD29: 7.757860162 | BE29: 8.145789792 | BF29: 8.552987728 | BG29: 8.98059439 | BH29: 9.429813319 | BI29: 9.901224639 | BJ29: 10.39627977 | BK29: 10.91609376 | BL29: 11.46192896 | BM29: 12.03504982 | BN29: 12.63680231 | BO29: 13.26867295 | BP29: 13.93196011 | BQ29: =BQ27-BQ26 -> 14.62864357 | BR29: 15.36003302 | BS29: 16.12795532 | BT29: 16.93445075 | BU29: 17.78107563 | BV29: 18.67025148 | BW29: 19.60377626 | BX29: 20.58362328 | BY29: 21.61295093 | BZ29: 22.69365951 | CA29: 23.82830586 | CB29: 25.02002633 | CC29: 26.2709544 | CD29: 27.58450212 | CE29: 28.96344647 | CF29: 30.411631 | CG29: 31.93220034 | CH29: 33.52920098 | CI29: 35.20546572 | CJ29: 36.96581225 | CK29: 38.81407845 | CL29: 40.75473354 | CM29: 42.79247022 | CN29: 44.9322158 | CO29: 47.17907073 | CP29: 49.53768247 | CQ29: 52.01446894 | CR29: 54.61536328 | CS29: 57.34591172 | CT29: 60.21323172 | CU29: 63.22396655 | CV29: 66.38506722 | CW29: 69.70446707 | CX29: 73.18969042 | CY29: 76.84976088 | CZ29: 80.69259072
B30: Change in Deferred Tax | D30: =D29*$E$9 -> -3 | E30: =E29*$E$9 -> -0.15 | F30: 1.6425 | G30: 2.564625458 | H30: 2.76485506 | I30: 2.36069833 | J30: 1.444813569 | K30: 0.4831329674 | L30: -0.5266282309 | M30: -1.586881952 | N30: 0.2998579344 | O30: 0.3148496867 | P30: 0.3305921711 | Q30: 0.3471224663 | R30: 0.3644772163 | S30: 0.382703137 | T30: 0.4018394383 | U30: 0.4219270614 | V30: 0.4430218123 | W30: 0.465174734 | X30: 0.4884346151 | Y30: 0.5128542859 | Z30: 0.5384960847 | AA30: 0.5654272976 | AB30: 0.5936917961 | AC30: 0.6233768436 | AD30: 0.6545461436 | AE30: 0.6872816905 | AF30: 0.7216329577 | AG30: 0.7577205565 | AH30: 0.7956097886 | AI30: 0.8353843271 | AJ30: 0.8771636143 | AK30: 0.9210181329 | AL30: 0.967066293 | AM30: 1.01542327 | AN30: 1.06618482 | AO30: 1.119500928 | AP30: 1.175473685 | AQ30: 1.234254694 | AR30: 1.295966513 | AS30: 1.360768501 | AT30: 1.428801432 | AU30: 1.500248828 | AV30: 1.575267678 | AW30: 1.654026485 | AX30: 1.736704005 | AY30: 1.823540121 | AZ30: 1.914718958 | BA30: 2.010450328 | BB30: 2.110974676 | BC30: 2.216527987 | BD30: 2.327358049 | BE30: 2.443736937 | BF30: 2.565896319 | BG30: 2.694178317 | BH30: 2.828943996 | BI30: 2.970367392 | BJ30: 3.11888393 | BK30: 3.274828127 | BL30: 3.438578688 | BM30: 3.610514947 | BN30: 3.791040694 | BO30: 3.980601884 | BP30: 4.179588033 | BQ30: =BQ29*$E$9 -> 4.38859307 | BR30: 4.608009906 | BS30: 4.838386597 | BT30: 5.080335224 | BU30: 5.334322688 | BV30: 5.601075444 | BW30: 5.881132878 | BX30: 6.175086983 | BY30: 6.483885278 | BZ30: 6.808097852 | CA30: 7.148491758 | CB30: 7.506007899 | CC30: 7.881286321 | CD30: 8.275350637 | CE30: 8.689033941 | CF30: 9.1234893 | CG30: 9.579660103 | CH30: 10.0587603 | CI30: 10.56163972 | CJ30: 11.08974367 | CK30: 11.64422353 | CL30: 12.22642006 | CM30: 12.83774107 | CN30: 13.47966474 | CO30: 14.15372122 | CP30: 14.86130474 | CQ30: 15.60434068 | CR30: 16.38460898 | CS30: 17.20377352 | CT30: 18.06396952 | CU30: 18.96718996 | CV30: 19.91552017 | CW30: 20.91134012 | CX30: 21.95690713 | CY30: 23.05492826 | CZ30: 24.20777722
B32: Deferred Tax/Cap Exp | D32: =D30/D19 -> -0.03 | E32: -0.001428571429 | F32: 0.01489795918 | G32: 0.02215419897 | H32: 0.022746531 | I32: 0.01849668913 | J32: 0.0107814213 | K32: 0.003433535799 | L32: -0.003564427158 | M32: -0.01022918255 | N32: 0.001840867601 | O32: 0.00184086091 | P32: 0.00184086091 | Q32: 0.001840864551 | R32: 0.001840857615 | S32: 0.001840867524 | T32: 0.001840872767 | U32: 0.001840853793 | V32: 0.001840847136 | W32: 0.001840854382 | X32: 0.001840858695 | Y32: 0.001840851301 | Z32: 0.001840848171 | AA32: 0.001840869036 | AB32: 0.001840847746 | AC32: 0.001840849097 | AD32: 0.001840850385 | AE32: 0.001840872455 | AF32: 0.001840839758 | AG32: 0.001840854216 | AH32: 0.00184086163 | AI32: 0.001840848517 | AJ32: =AJ30/AJ19 -> 0.001840869652 | AK32: 0.001840862332 | AL32: 0.001840857104 | AM32: 0.001840863743 | AN32: 0.001840847146 | AO32: 0.001840858436 | AP32: 0.001840854852 | AQ32: 0.001840865776 | AR32: 0.001840864476 | AS32: 0.00184086943 | AT32: 0.001840862352 | AU32: 0.001840871339 | AV32: 0.001840878829 | AW32: 0.001840873734 | AX32: 0.001840848503 | AY32: 0.001840849427 | AZ32: 0.001840851187 | BA32: 0.001840846996 | BB32: 0.001840848593 | BC32: 0.001840852395 | BD32: 0.001840855291 | BE32: 0.001840863567 | BF32: 0.001840843862 | BG32: 0.001840835105 | BH32: 0.001840872042 | BI32: 0.00184085729 | BJ32: 0.001840856209 | BK32: 0.001840856209 | BL32: 0.00184086111 | BM32: 0.001840864845 | BN32: 0.001840864845 | BO32: 0.001840869079 | BP32: =BP30/BP19 -> 0.001840849723 | BQ32: 0.001840860476 | BR32: 0.001840855356 | BS32: 0.001840846299 | BT32: 0.001840856915 | BU32: 0.001840846805 | BV32: 0.001840858841 | BW32: 0.001840859987 | BX32: 0.00184082942 | BY32: 0.001840841896 | BZ32: 0.001840846847 | CA32: 0.001840844018 | CB32: 0.001840866471 | CC32: 0.001840861339 | CD32: 0.001840861339 | CE32: 0.001840843495 | CF32: 0.001840844234 | CG32: 0.00184084353 | CH32: 0.001840864977 | CI32: 0.001840854764 | CJ32: 0.001840858411 | CK32: 0.001840857253 | CL32: 0.001840855048 | CM32: 0.001840855048 | CN32: 0.001840860049 | CO32: 0.001840869575 | CP32: 0.001840856874 | CQ32: 0.001840853417 | CR32: 0.001840859178 | CS32: 0.001840852124 | CT32: 0.001840852871 | CU32: 0.001840855003 | CV32: 0.001840852295 | CW32: 0.001840856164 | CX32: 0.001840856164 | CY32: 0.001840870199 | CZ32: 0.001840877997
B33: Cap Exp/Depreciation | E33: =E22/E26 -> 5.12195122 | F33: 3.497224425 | G33: 2.685826977 | H33: 2.199759982 | I33: 1.876356839 | J33: 1.645903033 | K33: 1.473541082 | L33: 1.339905524 | M33: 1.233376904 | N33: 1.233376904 | O33: 1.233376904 | P33: 1.233376904 | Q33: 1.233376904 | R33: 1.233376904 | S33: 1.233376904 | T33: 1.233376904 | U33: 1.233376904 | V33: 1.233376904 | W33: 1.233376904 | X33: 1.233376904 | Y33: 1.233376904 | Z33: 1.233376904 | AA33: 1.233376904 | AB33: 1.233376904 | AC33: 1.233376904 | AD33: 1.233376904 | AE33: 1.233376904 | AF33: 1.233376904 | AG33: 1.233376904 | AH33: 1.233376904 | AI33: 1.233376904 | AJ33: 1.233376904 | AK33: =AK22/AK26 -> 1.233376904 | AL33: 1.233376904 | AM33: 1.233376904 | AN33: 1.233376904 | AO33: 1.233376904 | AP33: 1.233376904 | AQ33: 1.233376904 | AR33: 1.233376904 | AS33: 1.233376904 | AT33: 1.233376904 | AU33: 1.233376904 | AV33: 1.233376904 | AW33: 1.233376904 | AX33: 1.233376904 | AY33: 1.233376904 | AZ33: 1.233376904 | BA33: 1.233376904 | BB33: 1.233376904 | BC33: 1.233376904 | BD33: 1.233376904 | BE33: 1.233376904 | BF33: 1.233376904 | BG33: 1.233376904 | BH33: 1.233376904 | BI33: 1.233376904 | BJ33: 1.233376904 | BK33: 1.233376904 | BL33: 1.233376904 | BM33: 1.233376904 | BN33: 1.233376904 | BO33: 1.233376904 | BP33: 1.233376904 | BQ33: =BQ22/BQ26 -> 1.233376904 | BR33: 1.233376904 | BS33: 1.233376904 | BT33: 1.233376904 | BU33: 1.233376904 | BV33: 1.233376904 | BW33: 1.233376904 | BX33: 1.233376904 | BY33: 1.233376904 | BZ33: 1.233376904 | CA33: 1.233376904 | CB33: 1.233376904 | CC33: 1.233376904 | CD33: 1.233376904 | CE33: 1.233376904 | CF33: 1.233376904 | CG33: 1.233376904 | CH33: 1.233376904 | CI33: 1.233376904 | CJ33: 1.233376904 | CK33: 1.233376904 | CL33: 1.233376904 | CM33: 1.233376904 | CN33: 1.233376904 | CO33: 1.233376904 | CP33: 1.233376904 | CQ33: 1.233376904 | CR33: 1.233376904 | CS33: 1.233376904 | CT33: 1.233376904 | CU33: 1.233376904 | CV33: 1.233376904 | CW33: 1.233376904 | CX33: 1.233376904 | CY33: 1.233376904 | CZ33: 1.233376904
G39: 1 | H39: =G39+1 -> 2 | I39: =H39+1 -> 3 | J39: 4 | K39: 5 | L39: 6 | M39: 7 | N39: 8 | O39: 9 | P39: 10 | Q39: 11 | R39: 12 | S39: 13 | T39: 14 | U39: 15 | V39: 16 | W39: 17 | X39: 18 | Y39: 19 | Z39: 20
D40: 1 | E40: =TRANSPOSE(D19:W19) -> 100 | G40: =LOOKUP(G$39-$D40+1,$E$15:$AH$15,$E$16:$AH$16)*$E40 -> 20 | H40: =LOOKUP(H$39-$D40+1,$E$15:$AH$15,$E$16:$AH$16)*$E40 -> 16 | I40: 12.8 | J40: 10.24 | K40: 8.192 | L40: 6.5536 | M40: 6.5536 | N40: 6.5536 | O40: 6.5536 | P40: 6.5536 | Q40: 0 | R40: 0 | S40: 0 | T40: 0 | U40: 0 | V40: 0 | W40: 0 | X40: 0 | Y40: 0 | Z40: 0
D41: =D40+1 -> 2 | E41: 105 | H41: 21 | I41: 16.8 | J41: 13.44 | K41: 10.752 | L41: 8.6016 | M41: 6.88128 | N41: 6.88128 | O41: 6.88128 | P41: 6.88128 | Q41: 6.88128 | R41: 0 | S41: 0 | T41: 0 | U41: 0 | V41: 0 | W41: 0 | X41: 0 | Y41: 0 | Z41: 0
D42: =D41+1 -> 3 | E42: 110.25 | I42: 22.05 | J42: 17.64 | K42: 14.112 | L42: 11.2896 | M42: 9.03168 | N42: 7.225344 | O42: 7.225344 | P42: 7.225344 | Q42: 7.225344 | R42: 7.225344 | S42: 0 | T42: 0 | U42: 0 | V42: 0 | W42: 0 | X42: 0 | Y42: 0 | Z42: 0
D43: 4 | E43: 115.7625 | J43: 23.1525 | K43: 18.522 | L43: 14.8176 | M43: 11.85408 | N43: 9.483264 | O43: 7.5866112 | P43: 7.5866112 | Q43: 7.5866112 | R43: 7.5866112 | S43: 7.5866112 | T43: 0 | U43: 0 | V43: 0 | W43: 0 | X43: 0 | Y43: 0 | Z43: 0
D44: 5 | E44: 121.550625 | K44: 24.310125 | L44: 19.4481 | M44: 15.55848 | N44: 12.446784 | O44: 9.9574272 | P44: 7.96594176 | Q44: 7.96594176 | R44: 7.96594176 | S44: 7.96594176 | T44: 7.96594176 | U44: 0 | V44: 0 | W44: 0 | X44: 0 | Y44: 0 | Z44: 0
D45: 6 | E45: 127.6281563 | L45: 25.52563125 | M45: 20.420505 | N45: 16.336404 | O45: 13.0691232 | P45: 10.45529856 | Q45: 8.364238848 | R45: 8.364238848 | S45: 8.364238848 | T45: 8.364238848 | U45: 8.364238848 | V45: 0 | W45: 0 | X45: 0 | Y45: 0 | Z45: 0
D46: 7 | E46: 134.0095641 | M46: 26.80191281 | N46: 21.44153025 | O46: 17.1532242 | P46: 13.72257936 | Q46: 10.97806349 | R46: 8.78245079 | S46: 8.78245079 | T46: 8.78245079 | U46: 8.78245079 | V46: 8.78245079 | W46: 0 | X46: 0 | Y46: 0 | Z46: 0
D47: 8 | E47: 140.7100423 | N47: 28.14200845 | O47: 22.51360676 | P47: 18.01088541 | Q47: 14.40870833 | R47: 11.52696666 | S47: 9.22157333 | T47: 9.22157333 | U47: 9.22157333 | V47: 9.22157333 | W47: 9.22157333 | X47: 0 | Y47: 0 | Z47: 0
D48: 9 | E48: 147.7455444 | O48: 29.54910888 | P48: 23.6392871 | Q48: 18.91142968 | R48: 15.12914374 | S48: 12.103315 | T48: 9.682651996 | U48: 9.682651996 | V48: 9.682651996 | W48: 9.682651996 | X48: 9.682651996 | Y48: 0 | Z48: 0
D49: 10 | E49: 155.1328216 | P49: 31.02656432 | Q49: 24.82125146 | R49: 19.85700116 | S49: 15.88560093 | T49: 12.70848075 | U49: 10.1667846 | V49: 10.1667846 | W49: 10.1667846 | X49: 10.1667846 | Y49: 10.1667846 | Z49: 0
D50: 11 | E50: 162.8894627 | Q50: 32.57789254 | R50: 26.06231403 | S50: 20.84985122 | T50: 16.67988098 | U50: 13.34390478 | V50: 10.67512383 | W50: 10.67512383 | X50: 10.67512383 | Y50: 10.67512383 | Z50: 10.67512383
D51: 12 | E51: 171.0339358 | R51: 34.20678716 | S51: 27.36542973 | T51: 21.89234378 | U51: 17.51387503 | V51: 14.01110002 | W51: 11.20888002 | X51: 11.20888002 | Y51: 11.20888002 | Z51: 11.20888002
D52: 13 | E52: 179.5856326 | S52: 35.91712652 | T52: 28.73370122 | U52: 22.98696097 | V52: 18.38956878 | W52: 14.71165502 | X52: 11.76932402 | Y52: 11.76932402 | Z52: 11.76932402
D53: 14 | E53: 188.5649142 | P53: =LOOKUP(P$39-$D53+1,$E$15:$AH$15,$E$16:$AH$16)*$E53 ->  | T53: 37.71298285 | U53: 30.17038628 | V53: 24.13630902 | W53: 19.30904722 | X53: 15.44723777 | Y53: 12.35779022 | Z53: 12.35779022
D54: 15 | E54: 197.9931599 | H54: =LOOKUP(H$39-$D54+1,$E$15:$AH$15,$E$16:$AH$16)*$E54 ->  | U54: 39.59863199 | V54: 31.67890559 | W54: 25.34312447 | X54: 20.27449958 | Y54: 16.21959966 | Z54: 12.97567973
D55: 16 | E55: 207.8928179 | V55: 41.57856359 | W55: 33.26285087 | X55: 26.6102807 | Y55: 21.28822456 | Z55: 17.03057965
D56: 17 | E56: 218.2874588 | W56: 43.65749177 | X56: 34.92599341 | Y56: 27.94079473 | Z56: 22.35263579
D57: 18 | E57: 229.2018318 | X57: 45.84036636 | Y57: 36.67229308 | Z57: 29.33783447
D58: 19 | E58: 240.6619234 | Y58: 48.13238467 | Z58: 38.50590774
D59: 20 | E59: 252.6950195 | Z59: 50.53900391
G61: =SUMIF(G40:G59,"<>#N/A",G40:G59) -> 20 | H61: =SUMIF(H40:H59,"<>#N/A",H40:H59) -> 37 | I61: 51.65 | J61: 64.4725 | K61: 75.888125 | L61: 86.23613125 | M61: 97.10153781 | N61: 108.5102147 | O61: 120.4893254 | P61: 133.0673917 | Q61: 139.7207613 | R61: 146.7067994 | S61: 154.0421393 | T61: 161.7442463 | U61: 169.8314586 | V61: 178.3230315 | W61: 187.2391831 | X61: 196.6011423 | Y61: 206.4311994 | Z61: 216.7527594
D63: Book Life | E63: =E8 -> 10 | F63: Growth | G63: =E7 -> 0.05 | H63: Tax Rate | J63: =E9 -> 0.3
D64: Stable Ratio of Deferred Tax Increase to Capital Expenditure
F65: Declining Balance Factor
F66: 1 | G66: =F66+0.5 -> 1.5 | H66: =G66+0.5 -> 2 | I66: =H66+0.5 -> 2.5 | J66: =I66+0.5 -> 3 | M66: row_start | N66: =ROW(F67) -> 67
D67: Tax Life | E67: 1 | F67: 0.1037201907 | G67: 0.1037201907 | H67: 0.1037201907 | I67: 0.1037201907 | J67: 0.1037201907 | M67: row_end | N67: =ROW(F76) -> 76
E68: 2 | F68: 0.09657732443 | G68: 0.1001487666 | H68: 0.1037201907 | I68: 0.1037201907 | J68: 0.1037201907 | M68: column_start | N68: =COLUMN(F67) -> 6
E69: 4 | F69: 0.08296377681 | G69: 0.08694621809 | H69: 0.09155626266 | I69: 0.09576646715 | J69: 0.0990959619 | M69: column_end | N69: =COLUMN(J67) -> 10 | Q69: db_fac
E70: 6 | F70: 0.0701940019 | G70: 0.07476283424 | H70: 0.08071181413 | I70: 0.0860758884 | J70: 0.09041770027 | M70: row_input | N70: db_fac | Q70: def_tax_ratio
E71: 8 | F71: 0.05820917944 | G71: 0.06355836297 | H71: 0.0705786795 | I71: 0.07700354735 | J71: 0.08232479714 | M71: col_input | N71: tax_life | Q71: tax_life
E72: 10 | F72: 0.04695483685 | G72: 0.05294999254 | H72: 0.06104947152 | I72: 0.06844390446 | J72: 0.07465318256 | M72: output | N72: def_tax_ratio
E73: 14 | F73: 0.02643962767 | G73: 0.03360955815 | H73: 0.04358891231 | I73: 0.05274038083 | J73: 0.06043786401
E74: 16 | F74: 0.01708878256 | G74: 0.02478079492 | H74: 0.03557841551 | I74: 0.04548172179 | J74: 0.05383823823
E75: 18 | F75: 0.008287934947 | G75: 0.01643822723 | H75: 0.02800330093 | I75: 0.03858493323 | J75: 0.04753711575 | M75: 1. For Next Loops
E76: 20 | F76: 2.890571408e-09 | G76: 0.008620513059 | H76: 0.02083434867 | I76: 0.03202760659 | J76: 0.04153898916 | M76: 2. Cell function in VBA

Sheet Comprehensive Deferred Tax
B2: Stable Capital Expenditures without Historic Growth
B4: Change in Deferred Tax to Cap Exp
B6: Assumptions | I6: Historic Growth | K6: 0.2 | M6: =deferred_tax(E7,E8,E9,E10,E16:AH16) -> 0.06104947009 | O6: =show_formulaR(M6) -> < ---- =deferred_tax(E7,E8,E9,E10,E16:AH16)
C7: Growth | E7: 0.05 | I7: Projected Growth | K7: =E7 -> 0.05
C8: Book Life | E8: 20 | I8: Life | K8: 20 | M8: =stable_deftax(K6,K7,K8,E9,K10,E16:AH16) -> 0.06104946483 | O8: =show_formulaR(M8) -> < ---- =stable_deftax(K6,K7,K8,E9,K10,E16:AH16)
C9: Tax Rate | E9: 0.3 | I9: WACC | K9: 0.1
C10: Timing Code | E10: 3 | I10: Timing Code | K10: =E10 -> 3
C12: Tax Life | E12: 10
C13: Decline Factor | E13: 2
C15: Tax Depreciation Year | D15: 0 | E15: 1 | F15: 2 | G15: 3 | H15: 4 | I15: 5 | J15: 6 | K15: 7 | L15: 8 | M15: 9 | N15: 10 | O15: 11 | P15: 12 | Q15: 13 | R15: 14 | S15: 15 | T15: 16 | U15: 17 | V15: 18 | W15: 19 | X15: 20 | Y15: 21 | Z15: 22 | AA15: 23 | AB15: 24 | AC15: 25 | AD15: 26 | AE15: 27 | AF15: 28 | AG15: 29 | AH15: 30
C16: Depreciation Rate | E16: =IF(E15<=$E$12,VDB(1,0,$E$12,D15,E15,$E$13)) -> 0.2 | F16: =IF(F15<=$E$12,VDB(1,0,$E$12,E15,F15,$E$13)) -> 0.16 | G16: 0.128 | H16: 0.1024 | I16: 0.08192 | J16: 0.065536 | K16: 0.065536 | L16: 0.065536 | M16: 0.065536 | N16: 0.065536 | O16: FALSE | P16: FALSE | Q16: FALSE | R16: FALSE | S16: FALSE | T16: FALSE | U16: FALSE | V16: FALSE | W16: FALSE | X16: FALSE | Y16: FALSE | Z16: FALSE | AA16: FALSE | AB16: FALSE | AC16: FALSE | AD16: FALSE | AE16: FALSE | AF16: FALSE | AG16: FALSE | AH16: FALSE
B18: Period | D18: 1 | E18: =D18+1 -> 2 | F18: =E18+1 -> 3 | G18: 4 | H18: 5 | I18: 6 | J18: 7 | K18: 8 | L18: 9 | M18: 10 | N18: 11 | O18: 12 | P18: 13 | Q18: 14 | R18: 15 | S18: 16 | T18: 17 | U18: 18 | V18: 19 | W18: 20 | X18: 21 | Y18: 22 | Z18: 23 | AA18: 24 | AB18: 25 | AC18: 26 | AD18: 27 | AE18: 28 | AF18: 29 | AG18: 30 | AH18: 31 | AI18: 32 | AJ18: 33 | AK18: 34 | AL18: 35 | AM18: 36 | AN18: 37 | AO18: 38 | AP18: 39 | AQ18: 40 | AR18: 41 | AS18: 42 | AT18: 43 | AU18: 44 | AV18: 45 | AW18: 46 | AX18: 47 | AY18: 48 | AZ18: 49 | BA18: 50 | BB18: 51 | BC18: 52 | BD18: 53 | BE18: 54 | BF18: 55 | BG18: 56 | BH18: 57 | BI18: 58 | BJ18: 59 | BK18: 60 | BL18: 61 | BM18: 62 | BN18: 63 | BO18: 64 | BP18: 65 | BQ18: 66 | BR18: =BQ18+1 -> 67 | BS18: 68 | BT18: 69 | BU18: 70 | BV18: 71 | BW18: 72 | BX18: 73 | BY18: 74 | BZ18: 75 | CA18: 76 | CB18: 77 | CC18: 78 | CD18: 79 | CE18: 80 | CF18: 81 | CG18: 82 | CH18: 83 | CI18: 84 | CJ18: 85 | CK18: 86 | CL18: 87 | CM18: 88 | CN18: 89 | CO18: 90 | CP18: 91 | CQ18: 92 | CR18: 93 | CS18: 94 | CT18: 95 | CU18: 96 | CV18: 97 | CW18: 98 | CX18: 99 | CY18: 100 | CZ18: 101
B19: Capital Expenidture | D19: 100 | E19: =D19*(1+$E$7) -> 105 | F19: =E19*(1+$E$7) -> 110.25 | G19: 115.7625 | H19: 121.550625 | I19: 127.6281563 | J19: 134.0095641 | K19: 140.7100423 | L19: 147.7455444 | M19: 155.1328216 | N19: 162.8894627 | O19: 171.0339358 | P19: 179.5856326 | Q19: 188.5649142 | R19: 197.9931599 | S19: 207.8928179 | T19: 218.2874588 | U19: 229.2018318 | V19: 240.6619234 | W19: 252.6950195 | X19: 265.3297705 | Y19: 278.596259 | Z19: 292.526072 | AA19: 307.1523756 | AB19: 322.5099944 | AC19: 338.6354941 | AD19: 355.5672688 | AE19: 373.3456322 | AF19: 392.0129138 | AG19: 411.6135595 | AH19: 432.1942375 | AI19: 453.8039494 | AJ19: 476.4941469 | AK19: 500.3188542 | AL19: 525.3347969 | AM19: 551.6015368 | AN19: 579.1816136 | AO19: 608.1406943 | AP19: 638.547729 | AQ19: 670.4751154 | AR19: 703.9988712 | AS19: 739.1988148 | AT19: 776.1587555 | AU19: 814.9666933 | AV19: 855.715028 | AW19: 898.5007793 | AX19: 943.4258183 | AY19: 990.5971092 | AZ19: 1040.126965 | BA19: 1092.133313 | BB19: 1146.739979 | BC19: 1204.076978 | BD19: 1264.280826 | BE19: 1327.494868 | BF19: 1393.869611 | BG19: 1463.563092 | BH19: 1536.741246 | BI19: 1613.578309 | BJ19: 1694.257224 | BK19: 1778.970085 | BL19: 1867.918589 | BM19: 1961.314519 | BN19: 2059.380245 | BO19: 2162.349257 | BP19: 2270.46672 | BQ19: 2383.990056 | BR19: =BQ19*(1+$E$7) -> 2503.189559 | BS19: 2628.349037 | BT19: 2759.766488 | BU19: 2897.754813 | BV19: 3042.642554 | BW19: 3194.774681 | BX19: 3354.513415 | BY19: 3522.239086 | BZ19: 3698.35104 | CA19: 3883.268592 | CB19: 4077.432022 | CC19: 4281.303623 | CD19: 4495.368804 | CE19: 4720.137244 | CF19: 4956.144107 | CG19: 5203.951312 | CH19: 5464.148878 | CI19: 5737.356322 | CJ19: 6024.224138 | CK19: 6325.435344 | CL19: 6641.707112 | CM19: 6973.792467 | CN19: 7322.482091 | CO19: 7688.606195 | CP19: 8073.036505 | CQ19: 8476.68833 | CR19: 8900.522747 | CS19: 9345.548884 | CT19: 9812.826328 | CU19: 10303.46764 | CV19: 10818.64103 | CW19: 11359.57308 | CX19: 11927.55173 | CY19: 12523.92932 | CZ19: 13150.12578
B20: Plant Balance
C21: Opening Balance | E21: =D24 -> 100 | F21: =E24 -> 205 | G21: 315.25 | H21: 431.0125 | I21: 552.563125 | J21: 680.1912812 | K21: 814.2008453 | L21: 954.9108876 | M21: 1102.656432 | N21: 1257.789254 | O21: 1420.678716 | P21: 1591.712652 | Q21: 1771.298285 | R21: 1959.863199 | S21: 2157.856359 | T21: 2365.749177 | U21: 2584.036636 | V21: 2813.238467 | W21: 3053.900391 | X21: 3306.59541 | Y21: 3471.925181 | Z21: 3645.52144 | AA21: 3827.797512 | AB21: 4019.187387 | AC21: 4220.146757 | AD21: 4431.154095 | AE21: 4652.711799 | AF21: 4885.347389 | AG21: 5129.614759 | AH21: 5386.095497 | AI21: 5655.400272 | AJ21: 5938.170285 | AK21: 6235.078799 | AL21: 6546.832739 | AM21: 6874.174376 | AN21: 7217.883095 | AO21: 7578.77725 | AP21: 7957.716112 | AQ21: 8355.601918 | AR21: 8773.382014 | AS21: 9212.051115 | AT21: 9672.65367 | AU21: 10156.28635 | AV21: 10664.10067 | AW21: 11197.30571 | AX21: 11757.17099 | AY21: 12345.02954 | AZ21: 12962.28102 | BA21: 13610.39507 | BB21: 14290.91482 | BC21: 15005.46056 | BD21: 15755.73359 | BE21: 16543.52027 | BF21: 17370.69628 | BG21: 18239.2311 | BH21: 19151.19265 | BI21: 20108.75229 | BJ21: 21114.1899 | BK21: 22169.89939 | BL21: 23278.39436 | BM21: 24442.31408 | BN21: 25664.42979 | BO21: 26947.65128 | BP21: 28295.03384 | BQ21: 29709.78553 | BR21: =BQ24 -> 31195.27481 | BS21: 32755.03855 | BT21: 34392.79048 | BU21: 36112.43 | BV21: 37918.0515 | BW21: 39813.95407 | BX21: 41804.65178 | BY21: 43894.88437 | BZ21: 46089.62859 | CA21: 48394.11001 | CB21: 50813.81552 | CC21: 53354.50629 | CD21: 56022.23161 | CE21: 58823.34319 | CF21: 61764.51035 | CG21: 64852.73586 | CH21: 68095.37266 | CI21: 71500.14129 | CJ21: 75075.14835 | CK21: 78828.90577 | CL21: 82770.35106 | CM21: 86908.86861 | CN21: 91254.31204 | CO21: 95817.02764 | CP21: 100607.879 | CQ21: 105638.273 | CR21: 110920.1866 | CS21: 116466.196 | CT21: 122289.5058 | CU21: 128403.981 | CV21: 134824.1801 | CW21: 141565.3891 | CX21: 148643.6586 | CY21: 156075.8415 | CZ21: 163879.6336
C22: Add: Capital Expenditure | D22: =D19 -> 100 | E22: 105 | F22: 110.25 | G22: 115.7625 | H22: 121.550625 | I22: 127.6281563 | J22: 134.0095641 | K22: 140.7100423 | L22: 147.7455444 | M22: 155.1328216 | N22: 162.8894627 | O22: 171.0339358 | P22: 179.5856326 | Q22: 188.5649142 | R22: 197.9931599 | S22: 207.8928179 | T22: 218.2874588 | U22: 229.2018318 | V22: 240.6619234 | W22: 252.6950195 | X22: 265.3297705 | Y22: 278.596259 | Z22: 292.526072 | AA22: 307.1523756 | AB22: 322.5099944 | AC22: 338.6354941 | AD22: 355.5672688 | AE22: 373.3456322 | AF22: 392.0129138 | AG22: 411.6135595 | AH22: 432.1942375 | AI22: 453.8039494 | AJ22: 476.4941469 | AK22: 500.3188542 | AL22: 525.3347969 | AM22: 551.6015368 | AN22: 579.1816136 | AO22: 608.1406943 | AP22: 638.547729 | AQ22: 670.4751154 | AR22: 703.9988712 | AS22: 739.1988148 | AT22: 776.1587555 | AU22: 814.9666933 | AV22: 855.715028 | AW22: 898.5007793 | AX22: 943.4258183 | AY22: 990.5971092 | AZ22: 1040.126965 | BA22: 1092.133313 | BB22: 1146.739979 | BC22: 1204.076978 | BD22: 1264.280826 | BE22: 1327.494868 | BF22: 1393.869611 | BG22: 1463.563092 | BH22: 1536.741246 | BI22: 1613.578309 | BJ22: 1694.257224 | BK22: 1778.970085 | BL22: 1867.918589 | BM22: 1961.314519 | BN22: 2059.380245 | BO22: 2162.349257 | BP22: =BP19 -> 2270.46672 | BQ22: 2383.990056 | BR22: 2503.189559 | BS22: 2628.349037 | BT22: 2759.766488 | BU22: 2897.754813 | BV22: 3042.642554 | BW22: 3194.774681 | BX22: 3354.513415 | BY22: 3522.239086 | BZ22: 3698.35104 | CA22: 3883.268592 | CB22: 4077.432022 | CC22: 4281.303623 | CD22: 4495.368804 | CE22: 4720.137244 | CF22: 4956.144107 | CG22: 5203.951312 | CH22: 5464.148878 | CI22: 5737.356322 | CJ22: 6024.224138 | CK22: 6325.435344 | CL22: 6641.707112 | CM22: 6973.792467 | CN22: 7322.482091 | CO22: 7688.606195 | CP22: 8073.036505 | CQ22: 8476.68833 | CR22: 8900.522747 | CS22: 9345.548884 | CT22: 9812.826328 | CU22: 10303.46764 | CV22: 10818.64103 | CW22: 11359.57308 | CX22: 11927.55173 | CY22: 12523.92932 | CZ22: 13150.12578
C23: Less: Retirements | E23: =IF(E18>$E$8,OFFSET(E22,0,-$E$8)) -> FALSE | F23: =IF(F18>$E$8,OFFSET(F22,0,-$E$8)) -> FALSE | G23: FALSE | H23: FALSE | I23: FALSE | J23: FALSE | K23: FALSE | L23: FALSE | M23: FALSE | N23: FALSE | O23: FALSE | P23: FALSE | Q23: FALSE | R23: FALSE | S23: FALSE | T23: FALSE | U23: FALSE | V23: FALSE | W23: FALSE | X23: 100 | Y23: 105 | Z23: 110.25 | AA23: 115.7625 | AB23: 121.550625 | AC23: 127.6281563 | AD23: 134.0095641 | AE23: 140.7100423 | AF23: 147.7455444 | AG23: 155.1328216 | AH23: 162.8894627 | AI23: 171.0339358 | AJ23: 179.5856326 | AK23: 188.5649142 | AL23: 197.9931599 | AM23: 207.8928179 | AN23: 218.2874588 | AO23: 229.2018318 | AP23: 240.6619234 | AQ23: 252.6950195 | AR23: 265.3297705 | AS23: 278.596259 | AT23: 292.526072 | AU23: 307.1523756 | AV23: 322.5099944 | AW23: 338.6354941 | AX23: 355.5672688 | AY23: 373.3456322 | AZ23: 392.0129138 | BA23: 411.6135595 | BB23: 432.1942375 | BC23: 453.8039494 | BD23: 476.4941469 | BE23: 500.3188542 | BF23: 525.3347969 | BG23: 551.6015368 | BH23: 579.1816136 | BI23: 608.1406943 | BJ23: 638.547729 | BK23: 670.4751154 | BL23: 703.9988712 | BM23: 739.1988148 | BN23: 776.1587555 | BO23: 814.9666933 | BP23: 855.715028 | BQ23: 898.5007793 | BR23: =IF(BR18>$E$8,OFFSET(BR22,0,-$E$8)) -> 943.4258183 | BS23: 990.5971092 | BT23: 1040.126965 | BU23: 1092.133313 | BV23: 1146.739979 | BW23: 1204.076978 | BX23: 1264.280826 | BY23: 1327.494868 | BZ23: 1393.869611 | CA23: 1463.563092 | CB23: 1536.741246 | CC23: 1613.578309 | CD23: 1694.257224 | CE23: 1778.970085 | CF23: 1867.918589 | CG23: 1961.314519 | CH23: 2059.380245 | CI23: 2162.349257 | CJ23: 2270.46672 | CK23: 2383.990056 | CL23: 2503.189559 | CM23: 2628.349037 | CN23: 2759.766488 | CO23: 2897.754813 | CP23: 3042.642554 | CQ23: 3194.774681 | CR23: 3354.513415 | CS23: 3522.239086 | CT23: 3698.35104 | CU23: 3883.268592 | CV23: 4077.432022 | CW23: 4281.303623 | CX23: 4495.368804 | CY23: 4720.137244 | CZ23: 4956.144107
C24: Closing Balance | D24: =D21+D22-D23 -> 100 | E24: =E21+E22-E23 -> 205 | F24: 315.25 | G24: 431.0125 | H24: 552.563125 | I24: 680.1912812 | J24: 814.2008453 | K24: 954.9108876 | L24: 1102.656432 | M24: 1257.789254 | N24: 1420.678716 | O24: 1591.712652 | P24: 1771.298285 | Q24: 1959.863199 | R24: 2157.856359 | S24: 2365.749177 | T24: 2584.036636 | U24: 2813.238467 | V24: 3053.900391 | W24: 3306.59541 | X24: 3471.925181 | Y24: 3645.52144 | Z24: 3827.797512 | AA24: 4019.187387 | AB24: 4220.146757 | AC24: 4431.154095 | AD24: 4652.711799 | AE24: 4885.347389 | AF24: 5129.614759 | AG24: 5386.095497 | AH24: 5655.400272 | AI24: 5938.170285 | AJ24: 6235.078799 | AK24: 6546.832739 | AL24: 6874.174376 | AM24: 7217.883095 | AN24: 7578.77725 | AO24: 7957.716112 | AP24: 8355.601918 | AQ24: 8773.382014 | AR24: 9212.051115 | AS24: 9672.65367 | AT24: 10156.28635 | AU24: 10664.10067 | AV24: 11197.30571 | AW24: 11757.17099 | AX24: 12345.02954 | AY24: 12962.28102 | AZ24: 13610.39507 | BA24: 14290.91482 | BB24: 15005.46056 | BC24: 15755.73359 | BD24: 16543.52027 | BE24: 17370.69628 | BF24: 18239.2311 | BG24: 19151.19265 | BH24: 20108.75229 | BI24: 21114.1899 | BJ24: 22169.89939 | BK24: 23278.39436 | BL24: 24442.31408 | BM24: 25664.42979 | BN24: 26947.65128 | BO24: 28295.03384 | BP24: 29709.78553 | BQ24: =BQ21+BQ22-BQ23 -> 31195.27481 | BR24: 32755.03855 | BS24: 34392.79048 | BT24: 36112.43 | BU24: 37918.0515 | BV24: 39813.95407 | BW24: 41804.65178 | BX24: 43894.88437 | BY24: 46089.62859 | BZ24: 48394.11001 | CA24: 50813.81552 | CB24: 53354.50629 | CC24: 56022.23161 | CD24: 58823.34319 | CE24: 61764.51035 | CF24: 64852.73586 | CG24: 68095.37266 | CH24: 71500.14129 | CI24: 75075.14835 | CJ24: 78828.90577 | CK24: 82770.35106 | CL24: 86908.86861 | CM24: 91254.31204 | CN24: 95817.02764 | CO24: 100607.879 | CP24: 105638.273 | CQ24: 110920.1866 | CR24: 116466.196 | CS24: 122289.5058 | CT24: 128403.981 | CU24: 134824.1801 | CV24: 141565.3891 | CW24: 148643.6586 | CX24: 156075.8415 | CY24: 163879.6336 | CZ24: 172073.6152
B26: Book Tax Depreciation | D26: =CHOOSE($E$10,D21*(1/$E$8),AVERAGE(D24,D21)/$E$8,D24/$E$8) -> 5 | E26: 10.25 | F26: 15.7625 | G26: 21.550625 | H26: 27.62815625 | I26: 34.00956406 | J26: 40.71004227 | K26: 47.74554438 | L26: 55.1328216 | M26: 62.88946268 | N26: 71.03393581 | O26: 79.5856326 | P26: 88.56491423 | Q26: 97.99315994 | R26: 107.8928179 | S26: 118.2874588 | T26: 129.2018318 | U26: 140.6619234 | V26: 152.6950195 | W26: 165.3297705 | X26: 173.596259 | Y26: 182.276072 | Z26: 191.3898756 | AA26: 200.9593694 | AB26: 211.0073378 | AC26: 221.5577047 | AD26: 232.63559 | AE26: 244.2673695 | AF26: 256.4807379 | AG26: 269.3047748 | AH26: 282.7700136 | AI26: 296.9085143 | AJ26: 311.75394 | AK26: 327.341637 | AL26: 343.7087188 | AM26: 360.8941548 | AN26: 378.9388625 | AO26: 397.8858056 | AP26: 417.7800959 | AQ26: 438.6691007 | AR26: 460.6025557 | AS26: 483.6326835 | AT26: 507.8143177 | AU26: 533.2050336 | AV26: 559.8652853 | AW26: 587.8585495 | AX26: 617.251477 | AY26: 648.1140508 | AZ26: 680.5197534 | BA26: 714.5457411 | BB26: 750.2730281 | BC26: 787.7866795 | BD26: 827.1760135 | BE26: 868.5348142 | BF26: 911.9615549 | BG26: 957.5596326 | BH26: 1005.437614 | BI26: 1055.709495 | BJ26: 1108.49497 | BK26: 1163.919718 | BL26: 1222.115704 | BM26: 1283.221489 | BN26: 1347.382564 | BO26: 1414.751692 | BP26: =CHOOSE($E$10,BP21*(1/$E$8),AVERAGE(BP24,BP21)/$E$8,BP24/$E$8) -> 1485.489277 | BQ26: 1559.76374 | BR26: 1637.751927 | BS26: 1719.639524 | BT26: 1805.6215 | BU26: 1895.902575 | BV26: 1990.697704 | BW26: 2090.232589 | BX26: 2194.744218 | BY26: 2304.481429 | BZ26: 2419.705501 | CA26: 2540.690776 | CB26: 2667.725315 | CC26: 2801.11158 | CD26: 2941.167159 | CE26: 3088.225517 | CF26: 3242.636793 | CG26: 3404.768633 | CH26: 3575.007064 | CI26: 3753.757418 | CJ26: 3941.445289 | CK26: 4138.517553 | CL26: 4345.443431 | CM26: 4562.715602 | CN26: 4790.851382 | CO26: 5030.393951 | CP26: 5281.913649 | CQ26: 5546.009331 | CR26: 5823.309798 | CS26: 6114.475288 | CT26: 6420.199052 | CU26: 6741.209005 | CV26: 7078.269455 | CW26: 7432.182928 | CX26: 7803.792074 | CY26: 8193.981678 | CZ26: 8603.680762
B27: Tax Depreciation using Function | D27: =depreciation(D22:CZ22,$E$16:$AH$16) -> 0 | E27: 20 | F27: 37 | G27: 51.65000153 | H27: 64.47249603 | I27: 75.88812256 | J27: 86.23612976 | K27: 97.10153198 | L27: 108.5102158 | M27: 120.4893188 | N27: 133.0673981 | O27: 139.7207642 | P27: 146.7068024 | Q27: 154.0421448 | R27: 161.7442474 | S27: 169.8314667 | T27: 178.3230438 | U27: 187.2391815 | V27: 196.6011353 | W27: 206.4311981 | X27: 216.7527618 | Y27: 227.5903931 | Z27: 238.9699097 | AA27: 250.9184265 | AB27: 263.464325 | AC27: 276.6375427 | AD27: 290.4694214 | AE27: 304.9929199 | AF27: 320.2425232 | AG27: 336.2546692 | AH27: 353.0674133 | AI27: 370.7207642 | AJ27: 389.2568359 | AK27: 408.7196655 | AL27: 429.1556396 | AM27: 450.6134338 | AN27: 473.1440735 | AO27: 496.8013 | AP27: 521.6413574 | AQ27: 547.7234497 | AR27: 575.1096191 | AS27: 603.8651123 | AT27: 634.0583496 | AU27: 665.7612915 | AV27: 699.0493774 | AW27: 734.0018311 | AX27: 770.7018433 | AY27: 809.2369385 | AZ27: 849.6987915 | BA27: 892.1837158 | BB27: 936.7929077 | BC27: 983.6325684 | BD27: 1032.814209 | BE27: 1084.454956 | BF27: 1138.677612 | BG27: 1195.61145 | BH27: 1255.392212 | BI27: 1318.161743 | BJ27: 1384.069824 | BK27: 1453.273315 | BL27: 1525.937012 | BM27: 1602.233887 | BN27: 1682.345581 | BO27: 1766.462891 | BP27: 1854.785889 | BQ27: 1947.525269 | BR27: 2044.901489 | BS27: 2147.146484 | BT27: 2254.503906 | BU27: 2367.229004 | BV27: 2485.590576 | BW27: 2609.870117 | BX27: 2740.363281 | BY27: 2877.381592 | BZ27: 3021.250732 | CA27: 3172.313232 | CB27: 3330.929199 | CC27: 3497.475586 | CD27: 3672.349365 | CE27: 3855.966553 | CF27: 4048.764893 | CG27: 4251.203125 | CH27: 4463.763672 | CI27: 4686.95166 | CJ27: 4921.299316 | CK27: 5167.364258 | CL27: 5425.732422 | CM27: 5697.019043 | CN27: 5981.870117 | CO27: 6280.963867 | CP27: 6595.011719 | CQ27: 6924.762207 | CR27: 7271.000488 | CS27: 7634.550293 | CT27: 8016.277832 | CU27: 8417.091797 | CV27: 8837.946289 | CW27: 9279.84375 | CX27: 9743.835938 | CY27: 10231.02832 | CZ27: 10742.58008
B29: Difference | D29: =D27-D26 -> -5 | E29: =E27-E26 -> 9.75 | F29: 21.2375 | G29: 30.09937653 | H29: 36.84433978 | I29: 41.8785585 | J29: 45.5260875 | K29: 49.3559876 | L29: 53.37739416 | M29: 57.59985617 | N29: 62.03346226 | O29: 60.13513156 | P29: 58.14188814 | Q29: 56.04898483 | R29: 53.8514295 | S29: 51.54400784 | T29: 49.12121204 | U29: 46.57725815 | V29: 43.90611572 | W29: 41.10142761 | X29: 43.1565028 | Y29: 45.31432107 | Z29: 47.58003408 | AA29: 49.95905714 | AB29: 52.45698711 | AC29: 55.07983799 | AD29: 57.83383142 | AE29: 60.72555045 | AF29: 63.76178525 | AG29: 66.94989435 | AH29: 70.29739975 | AI29: 73.8122499 | AJ29: 77.50289597 | AK29: 81.37802856 | AL29: 85.44692083 | AM29: 89.71927908 | AN29: 94.20521099 | AO29: 98.91549443 | AP29: 103.8612615 | AQ29: 109.054349 | AR29: 114.5070634 | AS29: 120.2324288 | AT29: 126.2440319 | AU29: 132.5562579 | AV29: 139.1840922 | AW29: 146.1432815 | AX29: 153.4503663 | AY29: 161.1228876 | AZ29: 169.1790381 | BA29: 177.6379748 | BB29: 186.5198796 | BC29: 195.8458888 | BD29: 205.6381955 | BE29: 215.9201419 | BF29: 226.7160574 | BG29: 238.0518176 | BH29: 249.9545977 | BI29: 262.4522482 | BJ29: 275.5748545 | BK29: 289.3535972 | BL29: 303.8213076 | BM29: 319.0123974 | BN29: 334.9630173 | BO29: 351.7111987 | BP29: 369.2966121 | BQ29: =BQ27-BQ26 -> 387.7615282 | BR29: 407.1495618 | BS29: 427.5069606 | BT29: 448.8824063 | BU29: 471.3264289 | BV29: 494.8928724 | BW29: 519.6375283 | BX29: 545.6190629 | BY29: 572.9001625 | BZ29: 601.5452317 | CA29: 631.6224566 | CB29: 663.2038847 | CC29: 696.3640056 | CD29: 731.1822059 | CE29: 767.7410355 | CF29: 806.1280994 | CG29: 846.4344922 | CH29: 888.7566074 | CI29: 933.1942425 | CJ29: 979.8540279 | CK29: 1028.846705 | CL29: 1080.288991 | CM29: 1134.303441 | CN29: 1191.018735 | CO29: 1250.569916 | CP29: 1313.09807 | CQ29: 1378.752876 | CR29: 1447.69069 | CS29: 1520.075005 | CT29: 1596.07878 | CU29: 1675.882792 | CV29: 1759.676834 | CW29: 1847.660822 | CX29: 1940.043863 | CY29: 2037.046642 | CZ29: 2138.899316
B30: Change in Deferred Tax | D30: =D29*$E$9 -> -1.5 | E30: =E29*$E$9 -> 2.925 | F30: 6.37125 | G30: 9.029812958 | H30: 11.05330193 | I30: 12.56356755 | J30: 13.65782625 | K30: 14.80679628 | L30: 16.01321825 | M30: 17.27995685 | N30: 18.61003868 | O30: 18.04053947 | P30: 17.44256644 | Q30: 16.81469545 | R30: 16.15542885 | S30: 15.46320235 | T30: 14.73636361 | U30: 13.97317744 | V30: 13.17183471 | W30: 12.33042828 | X30: 12.94695084 | Y30: 13.59429632 | Z30: 14.27401022 | AA30: 14.98771714 | AB30: 15.73709613 | AC30: 16.5239514 | AD30: 17.35014943 | AE30: 18.21766514 | AF30: 19.12853558 | AG30: 20.08496831 | AH30: 21.08921993 | AI30: 22.14367497 | AJ30: 23.25086879 | AK30: 24.41340857 | AL30: 25.63407625 | AM30: 26.91578372 | AN30: 28.2615633 | AO30: 29.67464833 | AP30: 31.15837846 | AQ30: 32.7163047 | AR30: 34.35211902 | AS30: 36.06972864 | AT30: 37.87320957 | AU30: 39.76687738 | AV30: 41.75522765 | AW30: 43.84298446 | AX30: 46.03510988 | AY30: 48.33686629 | AZ30: 50.75371143 | BA30: 53.29139243 | BB30: 55.95596388 | BC30: 58.75376665 | BD30: 61.69145865 | BE30: 64.77604257 | BF30: 68.01481723 | BG30: 71.41554527 | BH30: 74.9863793 | BI30: 78.73567446 | BJ30: 82.67245635 | BK30: 86.80607917 | BL30: 91.14639228 | BM30: 95.70371922 | BN30: 100.4889052 | BO30: 105.5133596 | BP30: 110.7889836 | BQ30: =BQ29*$E$9 -> 116.3284584 | BR30: 122.1448686 | BS30: 128.2520882 | BT30: 134.6647219 | BU30: 141.3979287 | BV30: 148.4678617 | BW30: 155.8912585 | BX30: 163.6857189 | BY30: 171.8700488 | BZ30: 180.4635695 | CA30: 189.486737 | CB30: 198.9611654 | CC30: 208.9092017 | CD30: 219.3546618 | CE30: 230.3223106 | CF30: 241.8384298 | CG30: 253.9303477 | CH30: 266.6269822 | CI30: 279.9582728 | CJ30: 293.9562084 | CK30: 308.6540115 | CL30: 324.0866974 | CM30: 340.2910322 | CN30: 357.3056205 | CO30: 375.1709747 | CP30: 393.9294209 | CQ30: 413.6258627 | CR30: 434.3072071 | CS30: 456.0225015 | CT30: 478.8236339 | CU30: 502.7648376 | CV30: 527.9030502 | CW30: 554.2982466 | CX30: 582.013159 | CY30: 611.1139927 | CZ30: 641.6697949
B32: Deferred Tax/Cap Exp | D32: =D30/D19 -> -0.015 | E32: 0.02785714286 | F32: 0.05778911565 | G32: 0.07800291941 | H32: 0.09093578856 | I32: 0.09843883919 | J32: 0.1019168023 | K32: 0.1052291368 | L32: 0.1083837642 | M32: 0.1113881426 | N32: 0.1142494939 | O32: 0.1054792979 | P32: 0.09712673663 | Q32: 0.08917192001 | R32: 0.08159589378 | S32: 0.07438064722 | T32: 0.06750897963 | U32: 0.06096451035 | V32: 0.05473169387 | W32: 0.04879569176 | X32: 0.04879569607 | Y32: 0.04879568868 | Z32: 0.04879568555 | AA32: 0.04879570641 | AB32: 0.04879568512 | AC32: 0.04879568647 | AD32: 0.04879568776 | AE32: 0.04879570983 | AF32: 0.04879567713 | AG32: 0.04879569159 | AH32: 0.048795699 | AI32: 0.04879568589 | AJ32: =AJ30/AJ19 -> 0.04879570703 | AK32: 0.04879569971 | AL32: 0.04879569448 | AM32: 0.04879570112 | AN32: 0.04879568452 | AO32: 0.04879569581 | AP32: 0.04879569223 | AQ32: 0.04879570315 | AR32: 0.04879570185 | AS32: 0.0487957068 | AT32: 0.04879569973 | AU32: 0.04879570871 | AV32: 0.0487957162 | AW32: 0.04879571111 | AX32: 0.04879568588 | AY32: 0.0487956868 | AZ32: 0.04879568856 | BA32: 0.04879568437 | BB32: 0.04879568597 | BC32: 0.04879568977 | BD32: 0.04879569267 | BE32: 0.04879570094 | BF32: 0.04879568124 | BG32: 0.04879567248 | BH32: 0.04879570942 | BI32: 0.04879569466 | BJ32: 0.04879569358 | BK32: 0.04879569358 | BL32: 0.04879569848 | BM32: 0.04879570222 | BN32: 0.04879570222 | BO32: 0.04879570645 | BP32: =BP30/BP19 -> 0.0487956871 | BQ32: 0.04879569785 | BR32: 0.04879569273 | BS32: 0.04879568367 | BT32: 0.04879569429 | BU32: 0.04879568418 | BV32: 0.04879569622 | BW32: 0.04879569736 | BX32: 0.04879566679 | BY32: 0.04879567927 | BZ32: 0.04879568422 | CA32: 0.04879568139 | CB32: 0.04879570385 | CC32: 0.04879569871 | CD32: 0.04879569871 | CE32: 0.04879568087 | CF32: 0.04879568161 | CG32: 0.0487956809 | CH32: 0.04879570235 | CI32: 0.04879569214 | CJ32: 0.04879569579 | CK32: 0.04879569463 | CL32: 0.04879569242 | CM32: 0.04879569242 | CN32: 0.04879569742 | CO32: 0.04879570695 | CP32: 0.04879569425 | CQ32: 0.04879569079 | CR32: 0.04879569655 | CS32: 0.0487956895 | CT32: 0.04879569025 | CU32: 0.04879569238 | CV32: 0.04879568967 | CW32: 0.04879569354 | CX32: 0.04879569354 | CY32: 0.04879570757 | CZ32: 0.04879571537
B33: Cap Exp/Depreciation | E33: =E22/E26 -> 10.24390244 | F33: 6.99444885 | G33: 5.371653954 | H33: 4.399519964 | I33: 3.752713678 | J33: 3.291806066 | K33: 2.947082164 | L33: 2.679811047 | M33: 2.466753809 | N33: 2.293121743 | O33: 2.149055429 | P33: 2.02772886 | Q33: 1.924266085 | R33: 1.835091193 | S33: 1.757522057 | T33: 1.689507462 | U33: 1.629451854 | V33: 1.576095436 | W33: 1.528430232 | X33: 1.528430232 | Y33: 1.528430232 | Z33: 1.528430232 | AA33: 1.528430232 | AB33: 1.528430232 | AC33: 1.528430232 | AD33: 1.528430232 | AE33: 1.528430232 | AF33: 1.528430232 | AG33: 1.528430232 | AH33: 1.528430232 | AI33: 1.528430232 | AJ33: 1.528430232 | AK33: 1.528430232 | AL33: 1.528430232 | AM33: 1.528430232 | AN33: 1.528430232 | AO33: 1.528430232 | AP33: 1.528430232 | AQ33: 1.528430232 | AR33: 1.528430232 | AS33: 1.528430232 | AT33: 1.528430232 | AU33: 1.528430232 | AV33: 1.528430232 | AW33: 1.528430232 | AX33: 1.528430232 | AY33: 1.528430232 | AZ33: 1.528430232 | BA33: 1.528430232 | BB33: 1.528430232 | BC33: 1.528430232 | BD33: 1.528430232 | BE33: 1.528430232 | BF33: 1.528430232 | BG33: 1.528430232 | BH33: 1.528430232 | BI33: 1.528430232 | BJ33: 1.528430232 | BK33: 1.528430232 | BL33: 1.528430232 | BM33: 1.528430232 | BN33: 1.528430232 | BO33: 1.528430232 | BP33: 1.528430232 | BQ33: =BQ22/BQ26 -> 1.528430232 | BR33: 1.528430232 | BS33: 1.528430232 | BT33: 1.528430232 | BU33: 1.528430232 | BV33: 1.528430232 | BW33: 1.528430232 | BX33: 1.528430232 | BY33: 1.528430232 | BZ33: 1.528430232 | CA33: 1.528430232 | CB33: 1.528430232 | CC33: 1.528430232 | CD33: 1.528430232 | CE33: 1.528430232 | CF33: 1.528430232 | CG33: 1.528430232 | CH33: 1.528430232 | CI33: 1.528430232 | CJ33: 1.528430232 | CK33: 1.528430232 | CL33: 1.528430232 | CM33: 1.528430232 | CN33: 1.528430232 | CO33: 1.528430232 | CP33: 1.528430232 | CQ33: 1.528430232 | CR33: 1.528430232 | CS33: 1.528430232 | CT33: 1.528430232 | CU33: 1.528430232 | CV33: 1.528430232 | CW33: 1.528430232 | CX33: 1.528430232 | CY33: 1.528430232 | CZ33: 1.528430232
G39: 1 | H39: =G39+1 -> 2 | I39: =H39+1 -> 3 | J39: 4 | K39: 5 | L39: 6 | M39: 7 | N39: 8 | O39: 9 | P39: 10 | Q39: 11 | R39: 12 | S39: 13 | T39: 14 | U39: 15 | V39: 16 | W39: 17 | X39: 18 | Y39: 19 | Z39: 20
D40: 1 | E40: =TRANSPOSE(D19:W19) -> 100 | G40: =LOOKUP(G$39-$D40+1,$E$15:$AH$15,$E$16:$AH$16)*$E40 -> 20 | H40: =LOOKUP(H$39-$D40+1,$E$15:$AH$15,$E$16:$AH$16)*$E40 -> 16 | I40: 12.8 | J40: 10.24 | K40: 8.192 | L40: 6.5536 | M40: 6.5536 | N40: 6.5536 | O40: 6.5536 | P40: 6.5536 | Q40: 0 | R40: 0 | S40: 0 | T40: 0 | U40: 0 | V40: 0 | W40: 0 | X40: 0 | Y40: 0 | Z40: 0
D41: =D40+1 -> 2 | E41: 105 | H41: 21 | I41: 16.8 | J41: 13.44 | K41: 10.752 | L41: 8.6016 | M41: 6.88128 | N41: 6.88128 | O41: 6.88128 | P41: 6.88128 | Q41: 6.88128 | R41: 0 | S41: 0 | T41: 0 | U41: 0 | V41: 0 | W41: 0 | X41: 0 | Y41: 0 | Z41: 0
D42: =D41+1 -> 3 | E42: 110.25 | I42: 22.05 | J42: 17.64 | K42: 14.112 | L42: 11.2896 | M42: 9.03168 | N42: 7.225344 | O42: 7.225344 | P42: 7.225344 | Q42: 7.225344 | R42: 7.225344 | S42: 0 | T42: 0 | U42: 0 | V42: 0 | W42: 0 | X42: 0 | Y42: 0 | Z42: 0
D43: 4 | E43: 115.7625 | J43: 23.1525 | K43: 18.522 | L43: 14.8176 | M43: 11.85408 | N43: 9.483264 | O43: 7.5866112 | P43: 7.5866112 | Q43: 7.5866112 | R43: 7.5866112 | S43: 7.5866112 | T43: 0 | U43: 0 | V43: 0 | W43: 0 | X43: 0 | Y43: 0 | Z43: 0
D44: 5 | E44: 121.550625 | K44: 24.310125 | L44: 19.4481 | M44: 15.55848 | N44: 12.446784 | O44: 9.9574272 | P44: 7.96594176 | Q44: 7.96594176 | R44: 7.96594176 | S44: 7.96594176 | T44: 7.96594176 | U44: 0 | V44: 0 | W44: 0 | X44: 0 | Y44: 0 | Z44: 0
D45: 6 | E45: 127.6281563 | L45: 25.52563125 | M45: 20.420505 | N45: 16.336404 | O45: 13.0691232 | P45: 10.45529856 | Q45: 8.364238848 | R45: 8.364238848 | S45: 8.364238848 | T45: 8.364238848 | U45: 8.364238848 | V45: 0 | W45: 0 | X45: 0 | Y45: 0 | Z45: 0
D46: 7 | E46: 134.0095641 | M46: 26.80191281 | N46: 21.44153025 | O46: 17.1532242 | P46: 13.72257936 | Q46: 10.97806349 | R46: 8.78245079 | S46: 8.78245079 | T46: 8.78245079 | U46: 8.78245079 | V46: 8.78245079 | W46: 0 | X46: 0 | Y46: 0 | Z46: 0
D47: 8 | E47: 140.7100423 | N47: 28.14200845 | O47: 22.51360676 | P47: 18.01088541 | Q47: 14.40870833 | R47: 11.52696666 | S47: 9.22157333 | T47: 9.22157333 | U47: 9.22157333 | V47: 9.22157333 | W47: 9.22157333 | X47: 0 | Y47: 0 | Z47: 0
D48: 9 | E48: 147.7455444 | O48: 29.54910888 | P48: 23.6392871 | Q48: 18.91142968 | R48: 15.12914374 | S48: 12.103315 | T48: 9.682651996 | U48: 9.682651996 | V48: 9.682651996 | W48: 9.682651996 | X48: 9.682651996 | Y48: 0 | Z48: 0
D49: 10 | E49: 155.1328216 | P49: 31.02656432 | Q49: 24.82125146 | R49: 19.85700116 | S49: 15.88560093 | T49: 12.70848075 | U49: 10.1667846 | V49: 10.1667846 | W49: 10.1667846 | X49: 10.1667846 | Y49: 10.1667846 | Z49: 0
D50: 11 | E50: 162.8894627 | Q50: 32.57789254 | R50: 26.06231403 | S50: 20.84985122 | T50: 16.67988098 | U50: 13.34390478 | V50: 10.67512383 | W50: 10.67512383 | X50: 10.67512383 | Y50: 10.67512383 | Z50: 10.67512383
D51: 12 | E51: 171.0339358 | R51: 34.20678716 | S51: 27.36542973 | T51: 21.89234378 | U51: 17.51387503 | V51: 14.01110002 | W51: 11.20888002 | X51: 11.20888002 | Y51: 11.20888002 | Z51: 11.20888002
D52: 13 | E52: 179.5856326 | S52: 35.91712652 | T52: 28.73370122 | U52: 22.98696097 | V52: 18.38956878 | W52: 14.71165502 | X52: 11.76932402 | Y52: 11.76932402 | Z52: 11.76932402
D53: 14 | E53: 188.5649142 | P53: =LOOKUP(P$39-$D53+1,$E$15:$AH$15,$E$16:$AH$16)*$E53 ->  | T53: 37.71298285 | U53: 30.17038628 | V53: 24.13630902 | W53: 19.30904722 | X53: 15.44723777 | Y53: 12.35779022 | Z53: 12.35779022
D54: 15 | E54: 197.9931599 | H54: =LOOKUP(H$39-$D54+1,$E$15:$AH$15,$E$16:$AH$16)*$E54 ->  | U54: 39.59863199 | V54: 31.67890559 | W54: 25.34312447 | X54: 20.27449958 | Y54: 16.21959966 | Z54: 12.97567973
D55: 16 | E55: 207.8928179 | V55: 41.57856359 | W55: 33.26285087 | X55: 26.6102807 | Y55: 21.28822456 | Z55: 17.03057965
D56: 17 | E56: 218.2874588 | W56: 43.65749177 | X56: 34.92599341 | Y56: 27.94079473 | Z56: 22.35263579
D57: 18 | E57: 229.2018318 | X57: 45.84036636 | Y57: 36.67229308 | Z57: 29.33783447
D58: 19 | E58: 240.6619234 | Y58: 48.13238467 | Z58: 38.50590774
D59: 20 | E59: 252.6950195 | Z59: 50.53900391
G61: =SUMIF(G40:G59,"<>#N/A",G40:G59) -> 20 | H61: =SUMIF(H40:H59,"<>#N/A",H40:H59) -> 37 | I61: 51.65 | J61: 64.4725 | K61: 75.888125 | L61: 86.23613125 | M61: 97.10153781 | N61: 108.5102147 | O61: 120.4893254 | P61: 133.0673917 | Q61: 139.7207613 | R61: 146.7067994 | S61: 154.0421393 | T61: 161.7442463 | U61: 169.8314586 | V61: 178.3230315 | W61: 187.2391831 | X61: 196.6011423 | Y61: 206.4311994 | Z61: 216.7527594
D63: Book Life | E63: =E8 -> 20 | F63: Growth | G63: =E7 -> 0.05 | H63: Tax Rate | J63: =E9 -> 0.3
D64: Stable Ratio of Deferred Tax Increase to Capital Expenditure
F65: Declining Balance Factor
F66: 1 | G66: =F66+0.5 -> 1.5 | H66: =G66+0.5 -> 2 | I66: =H66+0.5 -> 2.5 | J66: =I66+0.5 -> 3 | M66: row_start | N66: =ROW(F67) -> 67
D67: Tax Life | E67: 1 | F67: 0.1037201907 | G67: 0.1037201907 | H67: 0.1037201907 | I67: 0.1037201907 | J67: 0.1037201907 | M67: row_end | N67: =ROW(F76) -> 76
E68: 2 | F68: 0.09657732443 | G68: 0.1001487666 | H68: 0.1037201907 | I68: 0.1037201907 | J68: 0.1037201907 | M68: column_start | N68: =COLUMN(F67) -> 6
E69: 4 | F69: 0.08296377681 | G69: 0.08694621809 | H69: 0.09155626266 | I69: 0.09576646715 | J69: 0.0990959619 | M69: column_end | N69: =COLUMN(J67) -> 10 | Q69: db_fac
E70: 6 | F70: 0.0701940019 | G70: 0.07476283424 | H70: 0.08071181413 | I70: 0.0860758884 | J70: 0.09041770027 | M70: row_input | N70: db_fac | Q70: def_tax_ratio
E71: 8 | F71: 0.05820917944 | G71: 0.06355836297 | H71: 0.0705786795 | I71: 0.07700354735 | J71: 0.08232479714 | M71: col_input | N71: tax_life | Q71: tax_life
E72: 10 | F72: 0.04695483685 | G72: 0.05294999254 | H72: 0.06104947152 | I72: 0.06844390446 | J72: 0.07465318256 | M72: output | N72: def_tax_ratio
E73: 14 | F73: 0.02643962767 | G73: 0.03360955815 | H73: 0.04358891231 | I73: 0.05274038083 | J73: 0.06043786401
E74: 16 | F74: 0.01708878256 | G74: 0.02478079492 | H74: 0.03557841551 | I74: 0.04548172179 | J74: 0.05383823823
E75: 18 | F75: 0.008287934947 | G75: 0.01643822723 | H75: 0.02800330093 | I75: 0.03858493323 | J75: 0.04753711575 | M75: 1. For Next Loops
E76: 20 | F76: 2.890571408e-09 | G76: 0.008620513059 | H76: 0.02083434867 | I76: 0.03202760659 | J76: 0.04153898916 | M76: 2. Cell function in VBA

Sheet Dates Allocate
D2: Problem: Develop portfolio of assets with different start and end dates
E4: Input Start dates and end dates
E5: Applies in Real Estate and Solar Models
D7: =f(I18) -> =percent_of_time($F18,$G18,I$15,I$16)
D9: Function date_percent(start_operation, end_operation, start_date, end_date)
D11: This function which is very helpful for real estate and portfolios
I15: 2014-06-01 | J15: 2014-09-01 | K15: 2014-11-01 | L15: 2015-03-01 | M15: 2016-03-01 | N15: 2017-03-01 | O15: 2018-03-01 | P15: 2019-03-01 | Q15: 2020-03-01 | R15: 2021-03-01 | S15: 2022-03-01 | T15: 2023-03-01 | U15: 2024-03-01 | V15: 2025-03-01 | W15: 2026-03-01 | X15: 2027-03-01 | Y15: 2028-03-01 | Z15: 2029-03-01 | AA15: 2030-03-01 | AB15: 2031-03-01 | AC15: 2032-03-01 | AD15: 2033-03-01 | AE15: 2034-03-01 | AF15: 2035-03-01 | AG15: 2036-03-01 | AH15: 2037-03-01 | AI15: 2038-03-01 | AJ15: 2039-03-01 | AK15: 2040-03-01 | AL15: 2041-03-01 | AM15: 2042-03-01 | AN15: 2043-03-01 | AO15: 2044-03-01 | AP15: 2045-03-01 | AQ15: 2046-03-01 | AR15: 2047-03-01 | AS15: 2048-03-01 | AT15: 2049-03-01 | AU15: 2050-03-01 | AV15: 2051-03-01
I16: 2014-08-31 | J16: 2014-10-31 | K16: 2015-02-28 | L16: 2016-02-29 | M16: 2017-02-28 | N16: 2018-02-28 | O16: 2019-02-28 | P16: 2020-02-29 | Q16: 2021-02-28 | R16: 2022-02-28 | S16: 2023-02-28 | T16: 2024-02-29 | U16: 2025-02-28 | V16: 2026-02-28 | W16: 2027-02-28 | X16: 2028-02-29 | Y16: 2029-02-28 | Z16: 2030-02-28 | AA16: 2031-02-28 | AB16: 2032-02-29 | AC16: 2033-02-28 | AD16: 2034-02-28 | AE16: 2035-02-28 | AF16: 2036-02-29 | AG16: 2037-02-28 | AH16: 2038-02-28 | AI16: 2039-02-28 | AJ16: 2040-02-29 | AK16: 2041-02-28 | AL16: 2042-02-28 | AM16: 2043-02-28 | AN16: 2044-02-29 | AO16: 2045-02-28 | AP16: 2046-02-28 | AQ16: 2047-02-28 | AR16: 2048-02-29 | AS16: 2049-02-28 | AT16: 2050-02-28 | AU16: 2051-02-28 | AV16: 2052-02-29
D18: First Increment | F18: 2014-07-14 | G18: 2040-06-01 | I18: =percent_of_time($F18,$G18,I$15,I$16) -> 0.5326086957 | J18: =percent_of_time($F18,$G18,J$15,J$16) -> 1 | K18: 1 | L18: 1 | M18: 1 | N18: 1 | O18: 1 | P18: 1 | Q18: 1 | R18: 1 | S18: 1 | T18: 1 | U18: 1 | V18: 1 | W18: 1 | X18: 1 | Y18: 1 | Z18: 1 | AA18: 1 | AB18: 1 | AC18: 1 | AD18: 1 | AE18: 1 | AF18: 1 | AG18: 1 | AH18: 1 | AI18: 1 | AJ18: 1 | AK18: 0.2520547945 | AL18: 0 | AM18: 0 | AN18: 0 | AO18: 0 | AP18: 0 | AQ18: 0 | AR18: 0 | AS18: 0 | AT18: 0 | AU18: 0 | AV18: 0
D19: Second Increment | F19: 2014-07-31 | G19: 2040-04-01 | I19: =percent_of_time($F19,$G19,I$15,I$16) -> 0.347826087 | J19: 1 | K19: 1 | L19: 1 | M19: 1 | N19: 1 | O19: 1 | P19: 1 | Q19: 1 | R19: 1 | S19: 1 | T19: 1 | U19: 1 | V19: 1 | W19: 1 | X19: 1 | Y19: 1 | Z19: 1 | AA19: 1 | AB19: 1 | AC19: 1 | AD19: 1 | AE19: 1 | AF19: 1 | AG19: 1 | AH19: 1 | AI19: 1 | AJ19: 1 | AK19: 0.08493150685 | AL19: 0 | AM19: 0 | AN19: 0 | AO19: 0 | AP19: 0 | AQ19: 0 | AR19: 0 | AS19: 0 | AT19: 0 | AU19: 0 | AV19: 0
D20: Third Increment | F20: 2015-04-28 | G20: 2040-11-01 | I20: =percent_of_time($F20,$G20,I$15,I$16) -> 0 | J20: 0 | K20: 0 | L20: 0.8415300546 | M20: 1 | N20: 1 | O20: 1 | P20: 1 | Q20: 1 | R20: 1 | S20: 1 | T20: 1 | U20: 1 | V20: 1 | W20: 1 | X20: 1 | Y20: 1 | Z20: 1 | AA20: 1 | AB20: 1 | AC20: 1 | AD20: 1 | AE20: 1 | AF20: 1 | AG20: 1 | AH20: 1 | AI20: 1 | AJ20: 1 | AK20: 0.6712328767 | AL20: 0 | AM20: 0 | AN20: 0 | AO20: 0 | AP20: 0 | AQ20: 0 | AR20: 0 | AS20: 0 | AT20: 0 | AU20: 0 | AV20: 0
D21: Fourth Increment | F21: 2015-05-31 | G21: 2041-03-01 | I21: =percent_of_time($F21,$G21,I$15,I$16) -> 0 | J21: 0 | K21: 0 | L21: 0.7513661202 | M21: 1 | N21: 1 | O21: 1 | P21: 1 | Q21: 1 | R21: 1 | S21: 1 | T21: 1 | U21: 1 | V21: 1 | W21: 1 | X21: 1 | Y21: 1 | Z21: 1 | AA21: 1 | AB21: 1 | AC21: 1 | AD21: 1 | AE21: 1 | AF21: 1 | AG21: 1 | AH21: 1 | AI21: 1 | AJ21: 1 | AK21: 1 | AL21: 0 | AM21: 0 | AN21: 0 | AO21: 0 | AP21: 0 | AQ21: 0 | AR21: 0 | AS21: 0 | AT21: 0 | AU21: 0 | AV21: 0
D22: Fifth Increment | F22: 2017-05-31 | G22: 2041-03-01 | I22: =percent_of_time($F22,$G22,I$15,I$16) -> 0 | J22: 0 | K22: 0 | L22: 0 | M22: 0 | N22: 0.7506849315 | O22: 1 | P22: 1 | Q22: 1 | R22: 1 | S22: 1 | T22: 1 | U22: 1 | V22: 1 | W22: 1 | X22: 1 | Y22: 1 | Z22: 1 | AA22: 1 | AB22: 1 | AC22: 1 | AD22: 1 | AE22: 1 | AF22: 1 | AG22: 1 | AH22: 1 | AI22: 1 | AJ22: 1 | AK22: 1 | AL22: 0 | AM22: 0 | AN22: 0 | AO22: 0 | AP22: 0 | AQ22: 0 | AR22: 0 | AS22: 0 | AT22: 0 | AU22: 0 | AV22: 0
G25: Difference | I25: =F18-I15 -> 43
G26: Total Days | I26: =I16-I15+1 -> 92
G28: Percent out | I28: =I25/I26 -> 0.4673913043
G29: Percent In | I29: =1-I28 -> 0.5326086957
I33: 2014-07-01 | J33: =I34 -> 2014-07-31 | K33: =J34 -> 2014-08-30 | L33: 2014-09-29 | M33: 2014-10-28 | N33: 2014-11-27 | O33: 2014-12-26 | P33: 2015-01-25 | Q33: 2015-02-24 | R33: 2015-03-23 | S33: 2015-04-22 | T33: 2015-05-21 | U33: 2015-06-20 | V33: 2015-07-19 | W33: 2015-08-18 | X33: 2015-09-17 | Y33: 2015-10-16 | Z33: 2015-11-15 | AA33: 2015-12-14 | AB33: 2016-01-13 | AC33: 2016-02-12 | AD33: 2016-03-11 | AE33: 2016-04-10 | AF33: 2016-05-09 | AG33: 2016-06-08 | AH33: 2016-07-07 | AI33: 2016-08-06 | AJ33: 2016-09-05 | AK33: 2016-10-04 | AL33: 2016-11-03 | AM33: 2016-12-02 | AN33: 2017-01-01 | AO33: 2017-01-31 | AP33: 2017-02-27 | AQ33: 2017-03-26 | AR33: 2017-04-25 | AS33: 2017-05-24 | AT33: 2017-06-23 | AU33: 2017-07-22 | AV33: 2017-08-21
I34: =EDATE(I33,1)-1 -> 2014-07-31 | J34: =EDATE(J33,1)-1 -> 2014-08-30 | K34: =EDATE(K33,1)-1 -> 2014-09-29 | L34: 2014-10-28 | M34: 2014-11-27 | N34: 2014-12-26 | O34: 2015-01-25 | P34: 2015-02-24 | Q34: 2015-03-23 | R34: 2015-04-22 | S34: 2015-05-21 | T34: 2015-06-20 | U34: 2015-07-19 | V34: 2015-08-18 | W34: 2015-09-17 | X34: 2015-10-16 | Y34: 2015-11-15 | Z34: 2015-12-14 | AA34: 2016-01-13 | AB34: 2016-02-12 | AC34: 2016-03-11 | AD34: 2016-04-10 | AE34: 2016-05-09 | AF34: 2016-06-08 | AG34: 2016-07-07 | AH34: 2016-08-06 | AI34: 2016-09-05 | AJ34: 2016-10-04 | AK34: 2016-11-03 | AL34: 2016-12-02 | AM34: 2017-01-01 | AN34: 2017-01-31 | AO34: 2017-02-27 | AP34: 2017-03-26 | AQ34: 2017-04-25 | AR34: 2017-05-24 | AS34: 2017-06-23 | AT34: 2017-07-22 | AU34: 2017-08-21 | AV34: 2017-09-20
D36: First Increment | F36: 2014-07-14 | G36: 2017-06-01 | I36: =percent_of_time($F36,$G36,I$33,I$34) -> 0.5806451613 | J36: =percent_of_time($F36,$G36,J$33,J$34) -> 1 | K36: 1 | L36: 1 | M36: 1 | N36: 1 | O36: 1 | P36: 1 | Q36: 1 | R36: 1 | S36: 1 | T36: 1 | U36: 1 | V36: 1 | W36: 1 | X36: 1 | Y36: 1 | Z36: 1 | AA36: 1 | AB36: 1 | AC36: 1 | AD36: 1 | AE36: 1 | AF36: 1 | AG36: 1 | AH36: 1 | AI36: 1 | AJ36: 1 | AK36: 1 | AL36: 1 | AM36: 1 | AN36: 1 | AO36: 1 | AP36: 1 | AQ36: 1 | AR36: 1 | AS36: 0.2580645161 | AT36: 0 | AU36: 0 | AV36: 0
D37: Second Increment | F37: 2014-07-31 | G37: 2017-06-01 | I37: =percent_of_time($F37,$G37,I$15,I$16) -> 0.347826087 | J37: =percent_of_time($F37,$G37,J$15,J$16) -> 1 | K37: 1 | L37: 1 | M37: 1 | N37: 0.2520547945 | O37: 0 | P37: 0 | Q37: 0 | R37: 0 | S37: 0 | T37: 0 | U37: 0 | V37: 0 | W37: 0 | X37: 0 | Y37: 0 | Z37: 0 | AA37: 0 | AB37: 0 | AC37: 0 | AD37: 0 | AE37: 0 | AF37: 0 | AG37: 0 | AH37: 0 | AI37: 0 | AJ37: 0 | AK37: 0 | AL37: 0 | AM37: 0 | AN37: 0 | AO37: 0 | AP37: 0 | AQ37: 0 | AR37: 0 | AS37: 0 | AT37: 0 | AU37: 0 | AV37: 0
D38: Third Increment | F38: 2015-04-28 | G38: 2016-11-01 | I38: =percent_of_time($F38,$G38,I$15,I$16) -> 0 | J38: 0 | K38: 0 | L38: 0.8415300546 | M38: 0.6712328767 | N38: 0 | O38: 0 | P38: 0 | Q38: 0 | R38: 0 | S38: 0 | T38: 0 | U38: 0 | V38: 0 | W38: 0 | X38: 0 | Y38: 0 | Z38: 0 | AA38: 0 | AB38: 0 | AC38: 0 | AD38: 0 | AE38: 0 | AF38: 0 | AG38: 0 | AH38: 0 | AI38: 0 | AJ38: 0 | AK38: 0 | AL38: 0 | AM38: 0 | AN38: 0 | AO38: 0 | AP38: 0 | AQ38: 0 | AR38: 0 | AS38: 0 | AT38: 0 | AU38: 0 | AV38: 0
A39: s | D39: Fourth Increment | F39: 2015-05-31 | G39: =EDATE(F39,5*12) -> 2020-05-31 | I39: =percent_of_time($F39,$G39,I$15,I$16) -> 0 | J39: 0 | K39: 0 | L39: 0.7513661202 | M39: 1 | N39: 1 | O39: 1 | P39: 1 | Q39: 0.2493150685 | R39: 0 | S39: 0 | T39: 0 | U39: 0 | V39: 0 | W39: 0 | X39: 0 | Y39: 0 | Z39: 0 | AA39: 0 | AB39: 0 | AC39: 0 | AD39: 0 | AE39: 0 | AF39: 0 | AG39: 0 | AH39: 0 | AI39: 0 | AJ39: 0 | AK39: 0 | AL39: 0 | AM39: 0 | AN39: 0 | AO39: 0 | AP39: 0 | AQ39: 0 | AR39: 0 | AS39: 0 | AT39: 0 | AU39: 0 | AV39: 0
D40: Fifth Increment | F40: 2017-05-31 | G40: =EDATE(F40,5*12) -> 2022-05-31 | I40: =percent_of_time($F40,$G40,I$15,I$16) -> 0 | J40: 0 | K40: 0 | L40: 0 | M40: 0 | N40: 0.7506849315 | O40: 1 | P40: 1 | Q40: 1 | R40: 1 | S40: 0.2493150685 | T40: 0 | U40: 0 | V40: 0 | W40: 0 | X40: 0 | Y40: 0 | Z40: 0 | AA40: 0 | AB40: 0 | AC40: 0 | AD40: 0 | AE40: 0 | AF40: 0 | AG40: 0 | AH40: 0 | AI40: 0 | AJ40: 0 | AK40: 0 | AL40: 0 | AM40: 0 | AN40: 0 | AO40: 0 | AP40: 0 | AQ40: 0 | AR40: 0 | AS40: 0 | AT40: 0 | AU40: 0 | AV40: 0
G43: Days Before Start | I43: =F36-I33 -> 13
G44: Total Days in Month | I44: =I34-I33+1 -> 31
G45: Percent Not in Serv | I45: =I43/I44 -> 0.4193548387
G46: Percent Not in Serv | I46: =1-I45 -> 0.5806451613
I48: =I34-F36 -> 17
I49: =I44-I48 -> 14
